Workbook

Sheet UEM
A1: MINISTÉRIO DA INTEGRAÇÃO E DO DESENVOLVIMENTO REGIONAL | J1: BDI serviç | K1: 1.2591
A2: COMPANHIA DE DESENVOLVIMENTO DOS VALES DO SÃO FRANCISCO E DO PARNAÍBA | J2: BDI fornec. | K2: 1.136
A3: SEDE
A4: PLANILHA ORÇAMENTÁRIA DE ESTIMATIVA GERAL PARA O ESTADO DA PARAÍBA | H4: Base SINAPI-PB 03/2025 ORSE 02/2025
H5: Data: Maio/2025
A7: Item | B7: Base | C7: Código | D7: Descrição | E7: Unid. | F7: Quant. | G7: Valor (R$)
G8: Unit. (sem BDI) | H8: Unit. (com BDI) | I8: Total
A10: 7 | D10: UNIDADE DE EXTRAÇÃO DE MEL | I10: =SUM(I48,I43,I40,I36,I34,I54,I12,I15,I21,I28) -> 247920.71
A12: 7.1 | D12: SERVIÇOS PRELIMINARES | I12: =SUM(I13:I14) -> 3285.5
A13: 7.2 | B13: sinapi | C13: 105009 | D13: =[1]CPU!$A$91 -> LOCAÇÃO DE OBRAS | E13: =[1]CPU!$I$91 -> m² | F13: =(7.89*2+9.6*2) -> 34.98 | G13: =J13 -> 73.26 | H13: =(G13*K$1) -> 92.241666 | I13: =ROUND(F13*H13,2) -> 3226.61 | J13: 73.26
A14: 7.3 | B14: Sinapi | C14: 98525 | D14: LIMPEZA MECANIZADA DE CAMADA VEGETAL, VEGETAÇÃO E PEQUENAS ÁRVORES (DIÂMETRO DE TRONCO MENOR QUE 0,20 M), COM TRATOR DE ESTEIRAS. | E14: m² | F14: =9.56*7.891 -> 75.43796 | G14: =J14 -> 0.62 | H14: =(G14*K$1) -> 0.780642 | I14: =ROUND(F14*H14,2) -> 58.89 | J14: 0.62
A15: 7.4 | D15: MOVIMENTO DE TERRA | I15: =SUM(I16:I20) -> 2004.39
A16: 7.5 | B16: Sinapi | C16: 101230 | D16: ESCAVAÇÃO VERTICAL A CÉU ABERTO, EM OBRAS DE INFRAESTRUTURA, INCLUINDO CARGA, DESCARGA E TRANSPORTE, EM SOLO DE 1ª CATEGORIA COM ESCAVADEIRA HIDRÁULICA (CAÇAMBA: 0,8 M³ / 111 HP) | E16: m³ | F16: =45.5+1.92+4.32+3 -> 54.74 | G16: =J16 -> 11.25 | H16: =(G16*K$1) -> 14.164875 | I16: =ROUND(F16*H16,2) -> 775.39 | J16: 11.25
A17: 7.6 | B17: Sinapi | C17: 100577 | D17: REGULARIZAÇÃO E COMPACTAÇÃO DE SUBLEITO DE SOLO PREDOMINANTEMENTE ARENOSO. | E17: m² | F17: =9.6*7.9*0.6 -> 45.504 | G17: 0.45 | H17: =(G17*K$1) -> 0.566595 | I17: =ROUND(F17*H17,2) -> 25.78 | J17: 0.45
A18: 7.7 | B18: Sinapi | C18: 96385 | D18: EXECUÇÃO E COMPACTAÇÃO DE ATERRO COM SOLO PREDOMINANTEMENTE ARGILOSO - EXCLUSIVE SOLO, ESCAVAÇÃO, CARGA E TRANSPORTE | E18: m³ | F18: 64.4 | G18: 11.86 | H18: 14.932926 | I18: =ROUND(F18*H18,2) -> 961.68 | J18: 11.86
A19: 7.8 | B19: Sinapi | C19: 100574 | D19: ESPALHAMENTO DE MATERIAL COM TRATOR DE ESTEIRAS. | E19: m³ | F19: 19.05 | G19: 1.35 | H19: 1.699785 | I19: =ROUND(F19*H19,2) -> 32.38 | J19: 1.35
A20: 7.9 | B20: Sinapi | C20: 100973 | D20: CARGA, MANOBRA E DESCARGA DE SOLOS E MATERIAIS GRANULARES EM CAMINHÃO BASCULANTE 6 M³ - CARGA COM PÁ CARREGADEIRA (CAÇAMBA DE 1,7 A 2,8 M³ /128 HP) E DESCARGA LIVRE | E20: m³ | F20: 19.05 | G20: 8.72 | H20: 10.979352 | I20: =ROUND(F20*H20,2) -> 209.16 | J20: 8.72
A21: 7.10 | D21: FUNDAÇÕES/ ESTRUTURAS DE CONCRETO ARMADO | I21: =SUM(I22:I25) -> 5095.58
A22: 7.11 | B22: Sinapi | C22: 92802 | D22: CORTE E DOBRA DE AÇO CA-50, DIÂMETRO DE 8,0 MM | E22: kg | F22: 101.6 | G22: =J22 -> 10.17 | H22: =(G22*K$1) -> 12.805047 | I22: =ROUND(F22*H22,2) -> 1300.99 | J22: 10.17
A23: 7.12 | B23: Sinapi | C23: 94965 | D23: CONCRETO FCK = 25MPA, TRAÇO 1:2,3:2,7 (CIMENTO/ AREIA MÉDIA/ BRITA 1) - PREPARO MECÂNICO COM BETONEIRA 400 L. | E23: m³ | F23: =2.16+1.8 -> 3.96 | G23: 486.78 | H23: =(G23*K$1) -> 612.904698 | I23: =ROUND(F23*H23,2) -> 2427.1 | J23: 486.78
A24: 7.13 | B24: Sinapi | C24: 103673 | D24: LANÇAMENTO COM USO DE BOMBA, ADENSAMENTO E ACABAMENTO DE CONCRETO EM ESTRUTURAS. AF_02/2022 | E24: m³ | F24: 3.96 | G24: 38.57 | H24: 48.563487 | I24: =ROUND(F24*H24,2) -> 192.31 | J24: 38.57
A25: 7.14 | B25: Sinapi | C25: 97086 | D25: FABRICAÇÃO, MONTAGEM E DESMONTAGEM DE FORMA PARA RADIER, EM MADEIRA SERRADA, 4 UTILIZAÇÕES. | E25: m² | F25: 7.8 | G25: 119.66 | H25: 150.663906 | I25: =ROUND(F25*H25,2) -> 1175.18 | J25: 119.66
A26: 7.15 | D26: REVESTIMENTOS | I26: =SUM(I27:I27) -> 0
A27: 7.16 | B27: Sinapi | C27: 98555 | D27: IMPERMEABILIZAÇÃO DE SUPERFÍCIE COM ARGAMASSA POLIMÉRICA / MEMBRANA ACRÍLICA, 3 DEMÃOS. | E27: m² | F27: 0 | G27: =(J27) -> 0 | H27: =(J27*K$1) -> 0 | I27: =ROUND(F27*H27,2) -> 0
A28: 7.17 | D28: ALVENARIAS, DIVISÓRIAS E FECHAMENTOS | I28: =SUM(I29:I33) -> 23749.36
A29: 7.18 | B29: CPU | C29: CPU010 | D29: REVESTIMENTO DE PAREDES EM CHAPAS DE AÇO INOXIDÁVEL AISI 304 - APENAS INSTALAÇÃO | E29: m² | F29: 70.54 | G29: =J29 -> 40.592 | H29: =(G29*K$1) -> 51.1093872 | I29: =ROUND(F29*H29,2) -> 3605.26 | J29: =CPU!I210 -> 40.592
A30: 7.19 | B30: ORSE | C30: 10280/ORSE | D30: MANTA EM LÃ DE VIDRO | E30: m² | F30: 66.278 | G30: 15.05 | H30: 18.880225 | I30: 1251.34 | J30: 15.05
A31: 7.20 | B31: CPU | C31: CPU009 | D31: CHAPA XADREZ EM ALUMINIO PARA PISO e:3mm, INCLUSO REBITE PARA FIXAÇÃO - APENAS MÃO DE OBRA | E31: m² | F31: 29.9 | G31: 355.0632 | H31: =(G31*K$1) -> 447.0600751 | I31: =ROUND(F31*H31,2) -> 13367.1 | J31: =CPU!I197 -> 355.0632
A32: 7.21 | B32: Sinapi | C32: 96486 | D32: FORRO EM RÉGUAS DE PVC, LISO, PARA AMBIENTES COMERCIAIS, INCLUSIVE ESTRUTURA BIDIRECIONAL DE FIXAÇÃO | E32: m² | F32: 29.93 | G32: 60.97 | H32: 76.767327 | I32: =ROUND(F32*H32,2) -> 2297.65 | J32: 60.97
A33: 7.22 | B33: Sinapi | C33: 104723 | D33: PAREDE COM SISTEMA EM CHAPAS DE GESSO PARA DRYWALL, USO INTERNO, COM DUAS FACES DUPLAS E ESTRUTURA METÁLICA COM GUIAS DUPLAS PARA PAREDES COM ÁREA LÍQUIDA MENOR QUE 6 m², COM VÃOS. | E33: m² | F33: 12.096 | G33: 211.95 | H33: 266.866245 | I33: =ROUND(F33*H33,2) -> 3228.01 | J33: 211.95
A34: 7.23 | D34: PINTURAS | I34: =SUM(I35:I35) -> 7496.29
A35: 7.24 | B35: Sinapi | C35: 100751 | D35: PINTURA COM TINTA EPOXÍDICA DE ACABAMENTO PULVERIZADA SOBRE PERFIL METÁLICO EXECUTADO EM FÁBRICA (02 DEMÃOS). | E35: m² | F35: 170.3 | G35: =J35 -> 34.96 | H35: =(G35*K$1) -> 44.018136 | I35: =ROUND(F35*H35,2) -> 7496.29 | J35: 34.96
A36: 7.25 | D36: COBERTURAS | I36: =SUM(I37:I39) -> 41303.49
A37: 7.26 | B37: ORSE | C37: 13874/ORSE | D37: ESTRUTURA METALICA P/ COBERTURA DE CRECHE PADRÃO 1 DO PADRÃO FNDE, EM LIGTH STEEL FRAME, COM PERFIS UE70 MONTANTES DE TUBO UE70, INCLUSIVE FORNECIMENTO E MONTAGEM. EXCLUSIVE TELHAS | E37: m² | F37: 96 | G37: =J37 -> 113.51 | H37: =(G37*K$1) -> 142.920441 | I37: =ROUND(F37*H37,2) -> 13720.36 | J37: 113.51
A38: 7.27 | B38: Sinapi | C38: 94216 | D38: TELHAMENTO COM TELHA METÁLICA TERMOACÚSTICA E = 30 MM, COM ATÉ 2 ÁGUAS, INCLUSO IÇAMENTO | E38: m² | F38: 96 | G38: =J38 -> 213.13 | H38: =(G38*K$1) -> 268.351983 | I38: =ROUND(F38*H38,2) -> 25761.79 | J38: 213.13
A39: 7.28 | B39: Sinapi | C39: 94228 | D39: CALHA EM CHAPA DE AÇO GALVANIZADO NÚMERO 24, DESENVOLVIMENTO DE 50 CM, INCLUSO TRANSPORTE VERTICAL. AF_07/2019 | E39: m | F39: =16*1.1 -> 17.6 | G39: 82.19 | H39: 103.485429 | I39: =ROUND(F39*H39,2) -> 1821.34 | J39: 82.19
A40: 7.29 | D40: CONSTRUÇÃO CIVIL | I40: =SUM(I41:I42) -> 8255.18
A41: 7.30 | B41: Sinapi | C41: 91341 | D41: PORTA EM ALUMÍNIO DE ABRIR TIPO VENEZIANA COM GUARNIÇÃO, FIXAÇÃO COM PARAFUSOS - FORNECIMENTO E INSTALAÇÃO. | E41: m² | F41: 5.04 | G41: =J41 -> 709.47 | H41: =(G41*K$1) -> 893.293677 | I41: =ROUND(F41*H41,2) -> 4502.2 | J41: 709.47
A42: 7.31 | B42: Sinapi | C42: 100674 | D42: CAIXILHO FIXO DE ALUMÍNIO PARA VIDRO (VIDRO INCLUSO), BATENTE/ REQUADRO DE 4 A 14 CM, SEM GUARNIÇÃO/ ALIZAR, FIXAÇÃO COM PARAFUSOS, VEDAÇÃO COM SILICONE, EXCLUSIVE CONTRAMARCO - FORNECIMENTO E INSTALAÇÃO. AF_11/2024 | E42: m² | F42: 3.75 | G42: 794.85 | H42: =(G42*K$1) -> 1000.795635 | I42: =ROUND(F42*H42,2) -> 3752.98 | J42: 794.85
A43: 7.32 | D43: INSTALAÇÕES PREDIAIS | I43: =SUM(I44:I47) -> 13202.47
A44: 7.33 | B44: CPU | C44: CPU001 | D44: =[1]CPU!$A$65 -> EXECUÇÃO DE INSTALAÇÕES HIDROSSANITÁRIAS, EXCLUSIVE EQUIPAMENTOS | E44: =[1]CPU!$I$78 -> cj | F44: 1 | G44: =J44 -> 2630 | H44: =(G44*K$1) -> 3311.433 | I44: =ROUND(F44*H44,2) -> 3311.43 | J44: =CPU!I45 -> 2630
A45: 7.34 | B45: SINAPI | C45: 98052 | D45: TANQUE SÉPTICO CIRCULAR, EM CONCRETO PRÉ-MOLDADO, DIÂMETRO INTERNO = 1,10 M, ALTURA INTERNA = 2,50 M, VOLUME ÚTIL: 2138,2 L (PARA 5 CONTRIBUINTES). | E45: un | F45: 1 | G45: 2061.49 | H45: =(G45*K$1) -> 2595.622059 | I45: =ROUND(F45*H45,2) -> 2595.62 | J45: 2061.49
A46: 7.35 | B46: SINAPI | C46: 98062 | D46: SUMIDOURO CIRCULAR, EM CONCRETO PRÉ-MOLDADO, DIÂMETRO INTERNO = 1,88 M, ALTURA INTERNA = 2,00 M, ÁREA DE INFILTRAÇÃO: 13,1 m² (PARA 5 CONTRIBUINTES) | E46: un | F46: 1 | G46: 3052.16 | H46: 3842.974656 | I46: 3842.97 | J46: 3052.16
A47: 7.36 | B47: CPU | C47: CPU002 | D47: =[1]CPU!$A$78 -> EXECUÇÃO DE INSTALAÇÕES ELÉTRICAS, EXCLUSIVE EQUIPAMENTOS | E47: =[1]CPU!$I$78 -> cj | F47: 1 | G47: 2742 | H47: 3452.4522 | I47: 3452.45 | J47: =CPU!I58 -> 2742
A48: 7.37 | D48: SERVIÇOS DIVERSOS | I48: =SUM(I49:I53) -> 26312.94
A49: 7.38 | B49: CPU | C49: CPU003 | D49: =[1]CPU!$A$140 -> CORTE DE CONTAINER PARA ESQUADRIAS | E49: =[1]CPU!$I$140 -> m² | F49: 16.45 | G49: =J49 -> 176.28028 | H49: =(G49*K$1) -> 221.9545005 | I49: =ROUND(F49*H49,2) -> 3651.15 | J49: =CPU!I78 -> 176.28028
A50: 7.39 | B50: CPU | C50: CPU004 | D50: =[1]CPU!$A$182 -> MODIFICAÇÕES NO CONTAINER COM CORTE POR ESMERILHADEIRA | E50: =[1]CPU!$I$182 -> m | F50: 58.26 | G50: 91.7072 | H50: =(G50*K$1) -> 115.4685355 | I50: 6727.2 | J50: =CPU!I120 -> 91.7072
A51: 7.40 | B51: CPU | C51: CPU005 | D51: =[1]CPU!$A$200 -> MODIFICAÇÕES NO CONTAINER UNIÃO ATRAVÉS DO PROCESSO DE SOLDAGEM, INCLUSO IÇAMENTO DO CONTAINER | E51: =[1]CPU!$I$200 -> m | F51: 21.9 | G51: 337.00267 | H51: 424.3200618 | I51: 9292.61 | J51: =CPU!I142 -> 337.00267
A52: 7.41 | B52: CPU | C52: CPU011 | D52: GUARDA-CORPO DE AÇO CARBONO, MONTANTES TUBULARES DE 1.1/2" ESPAÇADOS EM 0,75M, ALTURA APROXIMADA DE 0,90M, PREPARADO COM FUNDO E TINTA EPÓXI NA COR AMARELA | E52: m | F52: =0.75*2*3*1.1 -> 4.95 | G52: 454.721783 | H52: 572.540197 | I52: 2834.07 | J52: =CPU!I233 -> 454.721783
A53: 7.42 | B53: CPU | C53: CPU013 | D53: FORNECIMENTO E INSTALAÇÃO DE SUPORTE PARA CAIXA D'ÁGUA EM METALON | E53: un | F53: 1 | G53: 3024.309824 | H53: 3807.9085 | I53: 3807.91 | J53: =CPU!I287 -> 3024.309824
A54: 7.43 | D54: MATERIAIS | I54: =SUM(I55:I116) -> 117215.51
A55: 7.44 | B55: Cotação | D55: CONTAINER DRY BOX 20 PÉS 6,1X2,21X2,6 (COMPXLARGXALTU) | E55: un | F55: 2 | G55: =J55 -> 20978.75 | H55: =G55*$K$2 -> 23831.86 | I55: =ROUND(F55*H55,2) -> 47663.72 | J55: =CPU!I250 -> 20978.75
A56: 7.45 | B56: Sinapi | C56: 89356 | D56: TUBO PVC, SOLDAVEL, DN 25 MM, AGUA FRIA (NBR-5648) | E56: m | F56: 12 | G56: 21.47 | H56: =G56*$K$2 -> 24.38992 | I56: 292.68 | J56: 21.47
A57: 7.46 | B57: Sinapi | C57: 89357 | D57: TUBO PVC, SOLDAVEL, DN 32 MM, AGUA FRIA (NBR-5648) | E57: m | F57: 18 | G57: 29.77 | H57: 33.81872 | I57: 608.74 | J57: 29.77
A58: 7.47 | B58: Sinapi | C58: 9835 | D58: TUBO PVC SERIE NORMAL, DN 40 MM, PARA ESGOTO PREDIAL (NBR 5688) | E58: m | F58: 3 | G58: 6.11 | H58: 6.94096 | I58: 20.82 | J58: 6.11
A59: 7.48 | B59: Sinapi | C59: 9838 | D59: TUBO PVC SERIE NORMAL, DN 50 MM, PARA ESGOTO PREDIAL (NBR 5688) | E59: m | F59: 20 | G59: 10.1 | H59: 11.4736 | I59: 229.47 | J59: 10.1
A60: 7.49 | B60: Sinapi | C60: 9836 | D60: TUBO PVC SERIE NORMAL, DN 100 MM, PARA ESGOTO PREDIAL (NBR 5688) | E60: m | F60: 1 | G60: 14 | H60: 15.904 | I60: 15.9 | J60: 14
A61: 7.50 | B61: Sinapi | C61: 89362 | D61: JOELHO 90 GRAUS, PVC, SOLDÁVEL, DN 25MM, INSTALADO EM RAMAL OU SUB-RAMAL DE ÁGUA - FORNECIMENTO E INSTALAÇÃO. AF_06/2022 | E61: un | F61: 12 | G61: 8.36 | H61: 9.49696 | I61: 113.96 | J61: 8.36
A62: 7.51 | B62: Sinapi | C62: 89367 | D62: JOELHO 90 GRAUS, PVC, SOLDÁVEL, DN 32MM, INSTALADO EM RAMAL OU SUB-RAMAL DE ÁGUA - FORNECIMENTO E INSTALAÇÃO. AF_06/2022 | E62: un | F62: 10 | G62: 11.66 | H62: 13.24576 | I62: =ROUND(F62*H62,2) -> 132.46 | J62: 11.66
A63: 7.52 | B63: Sinapi | C63: 3515 | D63: JOELHO PVC, SOLDAVEL, COM BUCHA DE LATAO, 90 GRAUS, 20 MM X 1/2", PARA AGUA FRIA | E63: un | F63: 2 | G63: 6.46 | H63: 7.33856 | I63: =ROUND(F63*H63,2) -> 14.68 | J63: 6.46
A64: 7.53 | B64: Sinapi | C64: 7121 | D64: TE PVC, SOLDAVEL, COM BUCHA DE LATAO NA BOLSA CENTRAL, 90 GRAUS, 20 MM X 1/2", PARA AGUA FRIA PREDIAL | E64: un | F64: 2 | G64: 9.09 | H64: 10.32624 | I64: =ROUND(F64*H64,2) -> 20.65 | J64: 9.09
A65: 7.54 | B65: Sinapi | C65: 798 | D65: BUCHA DE REDUCAO PVC ROSCAVEL 3/4" X 1/2" | E65: un | F65: 2 | G65: 1.16 | H65: 1.31776 | I65: =ROUND(F65*H65,2) -> 2.64 | J65: 1.16
A66: 7.55 | B66: Sinapi | C66: 103957 | D66: BUCHA DE REDUÇÃO, CURTA, PVC, SOLDÁVEL, DN 32 X 25 MM, INSTALADO EM PRUMADA DE ÁGUA - FORNECIMENTO E INSTALAÇÃO. AF_06/2022 | E66: un | F66: 2 | G66: 4.24 | H66: 4.81664 | I66: 9.63 | J66: 4.24
A67: 7.56 | B67: Sinapi | C67: 3878 | D67: LUVA PVC, ROSCAVEL, 1 1/2", AGUA FRIA PREDIAL | E67: un | F67: 2 | G67: 11.86 | H67: 13.47296 | I67: 26.95 | J67: 11.86
A68: 7.57 | B68: Sinapi | C68: 4177 | D68: NIPLE DE FERRO GALVANIZADO, COM ROSCA BSP, DE 1/2" | E68: un | F68: 2 | G68: 5.3 | H68: 6.0208 | I68: 12.04 | J68: 5.3
A69: 7.58 | B69: Sinapi | C69: 89395 | D69: TE, PVC, SOLDÁVEL, DN 25MM, INSTALADO EM RAMAL OU SUB-RAMAL DE ÁGUA - FORNECIMENTO E INSTALAÇÃO. AF_06/2022 | E69: un | F69: 3 | G69: 11.54 | H69: 13.10944 | I69: 39.33 | J69: 11.54
A70: 7.59 | B70: Sinapi | C70: 89398 | D70: TE, PVC, SOLDÁVEL, DN 32MM, INSTALADO EM RAMAL OU SUB-RAMAL DE ÁGUA - FORNECIMENTO E INSTALAÇÃO. AF_06/2022 | E70: un | F70: 3 | G70: 16.28 | H70: 18.49408 | I70: 55.48 | J70: 16.28
A71: 7.60 | B71: Sinapi | C71: 97 | D71: ADAPTADOR PVC SOLDAVEL, COM FLANGE E ANEL DE VEDACAO, 32 MM X 1", PARA CAIXA D'AGUA | E71: un | F71: 4 | G71: 18.39 | H71: 20.89104 | I71: 83.56 | J71: 18.39
A72: 7.61 | B72: Sinapi | C72: 11675 | D72: REGISTRO DE ESFERA, PVC, COM VOLANTE, VS, SOLDAVEL, DN 32 MM, | E72: un | F72: 4 | G72: 28.54 | H72: 32.42144 | I72: 129.69 | J72: 28.54
A73: 7.62 | B73: Sinapi | C73: 34637 | D73: CAIXA D'AGUA / RESERVATORIO EM POLIETILENO, 500 LITROS, COM TAMPA | E73: un | F73: 1 | G73: 289.01 | H73: 328.31536 | I73: 328.32 | J73: 289.01
A74: 7.63 | B74: Sinapi | C74: 94495 | D74: REGISTRO DE GAVETA BRUTO, LATÃO, ROSCÁVEL, 1" - FORNECIMENTO E INSTALAÇÃO. AF_08/2021 | E74: un | F74: 1 | G74: 64.92 | H74: 73.74912 | I74: 73.75 | J74: 64.92
A75: 7.64 | B75: Sinapi | C75: 94496 | D75: REGISTRO DE GAVETA BRUTO, LATÃO, ROSCÁVEL, 1 1/4" - FORNECIMENTO E INSTALAÇÃO. AF_08/2021 | E75: un | F75: 2 | G75: 88.46 | H75: 100.49056 | I75: 200.98 | J75: 88.46
A76: 7.65 | B76: Sinapi | C76: 7603 | D76: TORNEIRA DE METAL AMARELO, PARA TANQUE / JARDIM, DE PAREDE, SEM BICO, CANO CURTO, PADRAO POPULAR / USO GERA | E76: un | F76: 2 | G76: 43.31 | H76: 49.20016 | I76: 98.4 | J76: 43.31
A77: 7.66 | B77: Sinapi | C77: 94795 | D77: TORNEIRA DE BOIA PARA CAIXA D'ÁGUA, ROSCÁVEL, 1/2" - FORNECIMENTO E INSTALAÇÃO. AF_08/2021 | E77: un | F77: 1 | G77: 45.46 | H77: 51.64256 | I77: 51.64 | J77: 45.46
A78: 7.67 | B78: Sinapi | C78: 20080 | D78: ADESIVO PLASTICO PARA PVC, FRASCO COM 175 GR | E78: un | F78: 2 | G78: 16.32 | H78: 18.53952 | I78: =ROUND(F78*H78,2) -> 37.08 | J78: 16.32
A79: 7.68 | B79: Sinapi | C79: 3143 | D79: FITA VEDA ROSCA 18MMX25M | E79: un | F79: 1 | G79: 4.61 | H79: 5.23696 | I79: =ROUND(F79*H79,2) -> 5.24 | J79: 4.61
A80: 7.69 | B80: Sinapi | C80: 35277 | D80: CAIXA DE GORDURA EM PVC, DIAMETRO MINIMO 300 MM, DIAMETRO DE SAIDA 100 MM CAPACIDADE APROXIMADA 18 LITROS, COM TAMPA E CESTO | E80: un | F80: 1 | G80: 303.5 | H80: 344.776 | I80: =ROUND(F80*H80,2) -> 344.78 | J80: 303.5
A81: 7.70 | B81: Sinapi | C81: 11735 | D81: PROLONGADOR PAR CAIXA DE GORDURA E INSPEÇÃO DN300, PVC | E81: un | F81: 1 | G81: 7.56 | H81: 8.58816 | I81: =ROUND(F81*H81,2) -> 8.59 | J81: 7.56
A82: 7.71 | B82: Sinapi | C82: 89482 | D82: CAIXA SIFONADA, PVC, DN 100 X 100 X 50 MM, FORNECIDA E INSTALADA EM RAMAIS DE ENCAMINHAMENTO DE ÁGUA PLUVIAL. AF_06/2022 | E82: un | F82: 5 | G82: 32.89 | H82: 37.36304 | I82: =ROUND(F82*H82,2) -> 186.82 | J82: 32.89
A83: 7.72 | B83: Sinapi | C83: 94679 | D83: CURVA 90 GRAUS, PVC, SOLDÁVEL, DN 50 MM, INSTALADO EM RESERVAÇÃO DE ÁGUA DE EDIFICAÇÃO QUE POSSUA RESERVATÓRIO DE FIBRA/FIBROCIMENTO FORNECIMENTO E INSTALAÇÃO. AF_06/2016 | E83: un | F83: 11 | G83: 21.28 | H83: 24.17408 | I83: 265.91 | J83: 21.28
A84: 7.73 | B84: Sinapi | C84: 89504 | D84: CURVA 45 GRAUS, PVC, SOLDÁVEL, DN 50MM, INSTALADO EM PRUMADA DE ÁGUA - FORNECIMENTO E INSTALAÇÃO. AF_06/2022 | E84: un | F84: 3 | G84: 16.96 | H84: 19.26656 | I84: 57.8 | J84: 16.96
A85: 7.74 | B85: Sinapi | C85: 89724 | D85: JOELHO 90 GRAUS, PVC, SERIE NORMAL, ESGOTO PREDIAL, DN 40 MM, JUNTA SOLDÁVEL, FORNECIDO E INSTALADO EM RAMAL DE DESCARGA OU RAMAL DE ESGOTO SANITÁRIO. AF_08/2022 | E85: un | F85: 1 | G85: 8.99 | H85: 10.21264 | I85: 10.21 | J85: 8.99
A86: 7.75 | B86: Sinapi | C86: 89731 | D86: JOELHO 90 GRAUS, PVC, SERIE NORMAL, ESGOTO PREDIAL, DN 50 MM, JUNTA ELÁSTICA, FORNECIDO E INSTALADO EM RAMAL DE DESCARGA OU RAMAL DE ESGOTO SANITÁRIO. AF_08/2022 | E86: un | F86: 8 | G86: 14.57 | H86: 16.55152 | I86: 132.41 | J86: 14.57
A87: 7.76 | B87: Sinapi | C87: 89563 | D87: JUNÇÃO SIMPLES, PVC, SERIE R, ÁGUA PLUVIAL, DN 50 MM, JUNTA ELÁSTICA, FORNECIDO E INSTALADO EM RAMAL DE ENCAMINHAMENTO. AF_06/2022 | E87: un | F87: 2 | G87: 33.77 | H87: 38.36272 | I87: 76.73 | J87: 33.77
A88: 7.77 | B88: Sinapi | C88: 103995 | D88: LUVA, PVC, SOLDÁVEL, DN 50MM, INSTALADO EM RAMAL DE DISTRIBUIÇÃO DE ÁGUA - FORNECIMENTO E INSTALAÇÃO. AF_06/2022 | E88: un | F88: 17 | G88: 13.32 | H88: 15.13152 | I88: 257.24 | J88: 13.32
A89: 7.78 | B89: Sinapi | C89: 104345 | D89: JUNÇÃO DE REDUÇÃO INVERTIDA, PVC, SÉRIE NORMAL, ESGOTO PREDIAL, DN 100 X 50 MM, JUNTA ELÁSTICA, FORNECIDO E INSTALADO EM RAMAL DE DESCARGA OU RAMAL DE ESGOTO SANITÁRIO. AF_08/2022 | E89: un | F89: 2 | G89: 41.44 | H89: 47.07584 | I89: 94.15 | J89: 41.44
A90: 7.79 | B90: Sinapi | C90: 20043 | D90: REDUÇÃO EXCÊNTRICA, PVC, ÁGUA PLUVIAL, DN 100 X 50 MM, LINHA NORMAL | E90: un | F90: 2 | G90: 8.43 | H90: 9.57648 | I90: =ROUND(F90*H90,2) -> 19.15 | J90: 8.43
A91: 7.80 | B91: Sinapi | C91: 86883 | D91: SIFÃO DO TIPO FLEXÍVEL EM PVC 1 X 1.1/2 - FORNECIMENTO E INSTALAÇÃO. AF_01/2020 | E91: un | F91: 1 | G91: 11.48 | H91: 13.04128 | I91: 13.04 | J91: 11.48
A92: 7.81 | B92: Sinapi | C92: 86941 | D92: LAVATÓRIO LOUÇA BRANCA COM COLUNA, 45 X 55CM OU EQUIVALENTE, PADRÃO MÉDIO, INCLUSO SIFÃO TIPO GARRAFA, VÁLVULA E ENGATE FLEXÍVEL DE 40CM EMMETAL CROMADO, COM TORNEIRA CROMADA DE MESA, PADRÃO MÉDIO - FORNECIMENTO E INSTALAÇÃO. | E92: un | F92: 1 | G92: 798.13 | H92: 906.67568 | I92: 906.68 | J92: 798.13
A93: 7.82 | B93: Sinapi | C93: 86936 | D93: CUBA DE EMBUTIR DE AÇO INOXIDÁVEL MÉDIA, INCLUSO VÁLVULA TIPO AMERICANA E SIFÃO TIPO GARRAFA EM METAL CROMADO - FORNECIMENTO E INSTALAÇÃO | E93: un | F93: 1 | G93: 466.88 | H93: 530.37568 | I93: 530.38 | J93: 466.88
A94: 7.83 | B94: Cotação | D94: LAVADOR DE BOTAS EM AÇO INOXIDÁVEL AISI 304 | E94: un | F94: 1 | G94: 3087.853333 | H94: 3507.801387 | I94: 3507.8 | J94: =O94 -> 3087.853333 | L94: 2415.63 | M94: 4192.93 | N94: 2655 | O94: =AVERAGE(L94:N94) -> 3087.853333
A95: 7.84 | B95: Sinapi | C95: 86906 | D95: TORNEIRA CROMADA DE MESA, 1/2 OU 3/4, PARA LAVATÓRIO, PADRÃO POPULAR - FORNECIMENTO E INSTALAÇÃO. AF_01/2020 | E95: un | F95: 2 | G95: 82.97 | H95: 94.25392 | I95: 188.51 | J95: 82.97
A96: 7.85 | B96: Sinapi | C96: 94768 | D96: ADAPTADOR COM FLANGE E ANEL DE VEDAÇÃO, CPVC, ROSCÁVEL, DN 42 MM, INSTALADO EM RESERVAÇÃO DE ÁGUA DE EDIFICAÇÃO QUE POSSUA RESERVATÓRIO DE FIBRA/FIBROCIMENTO - FORNECIMENTO E INSTALAÇÃO. AF_06/2016 | E96: un | F96: 1 | G96: 79.87 | H96: 90.73232 | I96: 90.73 | J96: 79.87
A97: 7.86 | B97: Cotação | D97: PEDALEIRA PARA ACIONAMENTO TORNEIRA, ROSCA 1/2" | E97: un | F97: 2 | G97: 145.3966667 | H97: 165.1706133 | I97: 330.34 | J97: =O97 -> 145.3966667 | L97: 133.4 | M97: 137.89 | N97: 164.9 | O97: =AVERAGE(L97:N97) -> 145.3966667
A98: 7.87 | B98: Sinapi | C98: 91924 | D98: CABO DE COBRE FLEXÍVEL ISOLADO, 1,5 Mm², ANTI-CHAMA 450/750 V, PARA CIRCUITOS TERMINAIS - FORNECIMENTO E INSTALAÇÃO. AF_03/2023 | E98: m | F98: 49 | G98: 3.16 | H98: 3.58976 | I98: 175.9 | J98: 3.16
A99: 7.88 | B99: Sinapi | C99: 91926 | D99: CABO DE COBRE, RIGIDO, CLASSE 2, ISOLACAO EM PVC/A, ANTICHAMA BWF-B, 1 CONDUTOR, 450/750 V, SECAO NOMINAL 2,5 Mm² | E99: m | F99: 180 | G99: 4.64 | H99: 5.27104 | I99: 948.79 | J99: 4.64
A100: 7.89 | B100: Sinapi | C100: 91952 | D100: INTERRUPTOR SIMPLES (1 MÓDULO), 10A/250V, SEM SUPORTE E SEM PLACA - FORNECIMENTO E INSTALAÇÃO. AF_03/2023 | E100: un | F100: 4 | G100: 17.07 | H100: 19.39152 | I100: 77.57 | J100: 17.07
A101: 7.90 | B101: Sinapi | C101: 91990 | D101: TOMADA ALTA DE EMBUTIR (1 MÓDULO), 2P+T 10 A, SEM SUPORTE E SEM PLACA - FORNECIMENTO E INSTALAÇÃO. AF_03/2023 | E101: un | F101: 1 | G101: 31.05 | H101: 35.2728 | I101: 35.27 | J101: 31.05
A102: 7.91 | B102: ORSE | C102: 11054/ORSE | D102: CAIXA METÁLICA COM UMA TOMADA 2P+T PARA INSTALAÇÃO APARENTE | E102: un | F102: 10 | G102: 27.17 | H102: 30.1587 | I102: 301.59 | J102: 27.17
A103: 7.92 | B103: Sinapi | C103: 95777 | D103: CONDULETE DE ALUMÍNIO, TIPO B, PARA ELETRODUTO DE AÇO GALVANIZADO DN 20 MM (3/4''), APARENTE - FORNECIMENTO E INSTALAÇÃO. AF_10/2022 | E103: un | F103: 5 | G103: 22.42 | H103: 25.46912 | I103: 127.35 | J103: 22.42
A104: 7.93 | B104: Sinapi | C104: 101890 | D104: DISJUNTOR MONOPOLAR TIPO NEMA, CORRENTE NOMINAL DE 10 ATÉ 30A - FORNECIMENTO E INSTALAÇÃO. AF_10/2020 | E104: un | F104: 1 | G104: 14.42 | H104: 16.38112 | I104: 16.38 | J104: 14.42
A105: 7.94 | B105: Sinapi | C105: 101892 | D105: DISJUNTOR MONOPOLAR TIPO NEMA, CORRENTE NOMINAL DE 10 ATÉ 50A - FORNECIMENTO E INSTALAÇÃO. AF_10/2020 | E105: un | F105: 7 | G105: 62.66 | H105: 71.18176 | I105: 498.27 | J105: 62.66
A106: 7.95 | B106: ORSE | C106: 07943/ORSE | D106: DISJUNTOR BIPOLAR DR 25A - DISPOSITIVO DIFERENCIAL RESIDUAL, TIPO AC, 30MA | E106: un | F106: 3 | G106: 278.5 | H106: 309.135 | I106: 927.41 | J106: 278.5
A107: 7.96 | B107: Sinapi | C107: 93661 | D107: DISJUNTOR BIPOLAR TIPO DIN, CORRENTE NOMINAL DE 16A - FORNECIMENTO E INSTALAÇÃO. AF_10/2020 | E107: un | F107: 2 | G107: 50.75 | H107: 57.652 | I107: 115.3 | J107: 50.75
A108: 7.97 | B108: Sinapi | C108: 93665 | D108: DISJUNTOR BIPOLAR TIPO DIN, CORRENTE NOMINAL DE 40A - FORNECIMENTO E INSTALAÇÃO. AF_10/2020 | E108: un | F108: 1 | G108: 59.7 | H108: 67.8192 | I108: 67.82 | J108: 59.7
A109: 7.98 | B109: ORSE | C109: 4878/ORSE | D109: PONTO DE LUZ EM TETO OU PAREDE, APARENTE SEM ELETRODUTO | E109: un | F109: 5 | G109: 65.23 | H109: 72.4053 | I109: 362.03 | J109: 65.23
A110: 7.99 | B110: ORSE | C110: 14448/ORSE | D110: ELETRODUTO DE AÇO GALVANIZADO, CLASSE LEVE, DN 25 MM (1") | E110: m | F110: 50 | G110: 33.67 | H110: 37.3737 | I110: 1868.69 | J110: 33.67
A111: 7.100 | B111: Sinapi | C111: 1879 | D111: CURVA 90° PVC ELETRODUTO ROSCAVEL 3/4" | E111: un | F111: 16 | G111: 1.56 | H111: 1.77216 | I111: 28.35 | J111: 1.56
A112: 7.101 | B112: Sinapi | C112: 39128 | D112: ABRAÇADEIRA GALVANIZADA "D" PARA ELETRODUTO 3/4" COM CUNHA | E112: un | F112: 50 | G112: 2.05 | H112: 2.3288 | I112: 116.44 | J112: 2.05
A113: 7.102 | B113: Sinapi | C113: 101878 | D113: QUADRO DE DISTRIBUIÇÃO DE ENERGIA EM CHAPA DE AÇO GALVANIZADO, DE SOBREPOR, COM BARRAMENTO TRIFÁSICO, PARA 18 DISJUNTORES DIN 100A - FORNECIMENTO E INSTALAÇÃO. AF_10/2020 | E113: un | F113: 1 | G113: 532.52 | H113: 604.94272 | I113: 604.94 | J113: 532.52
A114: 7.103 | B114: Sinapi | C114: 100954 | D114: TRANSPORTE COM CAMINHÃO CARROCERIA COM GUINDAUTO (MUNCK), MOMENTO MÁXIMO DE CARGA 11,7 TM, EM VIA INTERNA (DENTRO DO CANTEIRO - UNIDADE: TXKM). AF_07/2020 | E114: TXKM | F114: 800 | G114: 8.66 | H114: 9.83776 | I114: =ROUND(F114*H114,2) -> 7870.21 | J114: 8.66
A115: 7.104 | B115: CPU | C115: CPU006 | D115: REVESTIMENTO DE PAREDES EM CHAPAS DE AÇO INOXIDÁVEL AISI 304 - APENAS INSTALAÇÃO | E115: m² | F115: 70.54 | G115: 365.04 | H115: 414.68544 | I115: =ROUND(F115*H115,2) -> 29251.91 | J115: =CPU!I154 -> 365.04
A116: 7.105 | B116: CPU | C116: CPU008 | D116: CHAPA XADREZ EM ALUMINIO PARA PISO e:3mm, INCLUSO REBITE PARA FIXAÇÃO - APENAS MÃO DE OBRA | E116: m² | F116: 29.9 | G116: 486.7224 | H116: 552.9166464 | I116: =ROUND(F116*H116,2) -> 16532.21 | J116: =CPU!I184 -> 486.7224

Sheet UBF
A1: MINISTÉRIO DA INTEGRAÇÃO E DO DESENVOLVIMENTO REGIONAL | J1: BDI serviç | K1: 1.2591
A2: COMPANHIA DE DESENVOLVIMENTO DOS VALES DO SÃO FRANCISCO E DO PARNAÍBA | J2: BDI fornec. | K2: 1.136
A3: SEDE
A4: PLANILHA ORÇAMENTÁRIA DE ESTIMATIVA GERAL PARA O ESTADO DA PARAÍBA | H4: Base SINAPI-PB 03/2025 ORSE 02/2025
H5: Data: Maio/2025
A7: Item | B7: Base | C7: Código | D7: Descrição | E7: Unid. | F7: Quant. | G7: Valor (R$)
G8: Unit. (sem BDI) | H8: Unit. (com BDI) | I8: Total
A10: 8 | D10: UNIDADE DE BENEFICIAMENTO DE FRUTOS | I10: =SUM(I11,I14,I20,I25,I31,I33,I37,I43,I48,I55) -> 349279.2528
A11: 8.1 | D11: SERVIÇOS PRELIMINARES | I11: =SUM(I12:I13) -> 4729.18
A12: 8.2 | B12: sinapi | C12: 105009 | D12: =[1]CPU!$A$91 -> LOCAÇÃO DE OBRAS | E12: m | F12: =15+10+15+10 -> 50 | G12: =J12 -> 73.26 | H12: =(G12*K$1) -> 92.241666 | I12: =ROUND(F12*H12,2) -> 4612.08 | J12: 73.26
A13: 8.3 | B13: Sinapi | C13: 98525 | D13: LIMPEZA MECANIZADA DE CAMADA VEGETAL, VEGETAÇÃO E PEQUENAS ÁRVORES (DIÂMETRO DE TRONCO MENOR QUE 0,20 M), COM TRATOR DE ESTEIRAS. | E13: m² | F13: =15*10 -> 150 | G13: =J13 -> 0.62 | H13: =(G13*K$1) -> 0.780642 | I13: =ROUND(F13*H13,2) -> 117.1 | J13: 0.62
A14: 8.4 | D14: MOVIMENTO DE TERRA | I14: =SUM(I15:I19) -> 2931.56
A15: 8.5 | B15: Sinapi | C15: 101230 | D15: ESCAVAÇÃO VERTICAL A CÉU ABERTO, EM OBRAS DE INFRAESTRUTURA, INCLUINDO CARGA, DESCARGA E TRANSPORTE, EM SOLO DE 1ª CATEGORIA COM ESCAVADEIRA HIDRÁULICA (CAÇAMBA: 0,8 M³ / 111 HP) | E15: m³ | F15: 54.76 | G15: =J15 -> 11.25 | H15: =G15*$K$1 -> 14.164875 | I15: =ROUND(F15*H15,2) -> 775.67 | J15: 11.25
A16: 8.6 | B16: Sinapi | C16: 100577 | D16: REGULARIZAÇÃO E COMPACTAÇÃO DE SUBLEITO DE SOLO PREDOMINANTEMENTE ARENOSO. | E16: m² | F16: 150 | G16: 0.45 | H16: =G16*$K$1 -> 0.566595 | I16: =ROUND(F16*H16,2) -> 84.99 | J16: 0.45
A17: 8.7 | B17: Sinapi | C17: 96385 | D17: EXECUÇÃO E COMPACTAÇÃO DE ATERRO COM SOLO PREDOMINANTEMENTE ARGILOSO - EXCLUSIVE SOLO, ESCAVAÇÃO, CARGA E TRANSPORTE | E17: m³ | F17: 75 | G17: 11.86 | H17: =G17*$K$1 -> 14.932926 | I17: =ROUND(F17*H17,2) -> 1119.97 | J17: 11.86
A18: 8.8 | B18: Sinapi | C18: 100574 | D18: ESPALHAMENTO DE MATERIAL COM TRATOR DE ESTEIRAS. | E18: m³ | F18: 75 | G18: 1.35 | H18: =G18*$K$1 -> 1.699785 | I18: =ROUND(F18*H18,2) -> 127.48 | J18: 1.35
A19: 8.9 | B19: Sinapi | C19: 100973 | D19: CARGA, MANOBRA E DESCARGA DE SOLOS E MATERIAIS GRANULARES EM CAMINHÃO BASCULANTE 6 M³ - CARGA COM PÁ CARREGADEIRA (CAÇAMBA DE 1,7 A 2,8 M³ /128 HP) E DESCARGA LIVRE | E19: m³ | F19: 75 | G19: 8.72 | H19: =G19*$K$1 -> 10.979352 | I19: =ROUND(F19*H19,2) -> 823.45 | J19: 8.72
A20: 8.10 | D20: FUNDAÇÕES/ ESTRUTURAS DE CONCRETO ARMADO | I20: =SUM(I21:I24) -> 13721.13278
A21: 8.11 | B21: Sinapi | C21: 92802 | D21: CORTE E DOBRA DE AÇO CA-50, DIÂMETRO DE 8,0 MM | E21: kg | F21: 101.6 | G21: =J21 -> 10.17 | H21: =G21*K1 -> 12.805047 | I21: =H21*F21 -> 1300.992775 | J21: 10.17
A22: 8.12 | B22: Sinapi | C22: 94965 | D22: CONCRETO FCK = 25MPA, TRAÇO 1:2,3:2,7 (CIMENTO/ AREIA MÉDIA/ BRITA 1) - PREPARO MECÂNICO COM BETONEIRA 400 L. | E22: m³ | F22: 17 | G22: 486.78 | H22: =G22*K1 -> 612.904698 | I22: =ROUND(F22*H22,2) -> 10419.38 | J22: 486.78
A23: 8.13 | B23: Sinapi | C23: 103673 | D23: LANÇAMENTO COM USO DE BOMBA, ADENSAMENTO E ACABAMENTO DE CONCRETO EM ESTRUTURAS. AF_02/2022 | E23: m³ | F23: 17 | G23: 38.57 | H23: =G23*K1 -> 48.563487 | I23: =ROUND(F23*H23,2) -> 825.58 | J23: 38.57
A24: 8.14 | B24: Sinapi | C24: 97086 | D24: FABRICAÇÃO, MONTAGEM E DESMONTAGEM DE FORMA PARA RADIER, EM MADEIRA SERRADA, 4 UTILIZAÇÕES. | E24: m² | F24: 7.8 | G24: 119.66 | H24: =G24*K1 -> 150.663906 | I24: =ROUND(F24*H24,2) -> 1175.18 | J24: 119.66
A25: 8.15 | D25: ALVENARIAS, DIVISÓRIAS E FECHAMENTOS | I25: =SUM(I26:I30) -> 43128
A26: 8.16 | B26: CPU | C26: CPU010 | D26: REVESTIMENTO DE PAREDES EM CHAPAS DE AÇO INOXIDÁVEL AISI 304 - APENAS INSTALAÇÃO | E26: m² | F26: 20 | G26: =J26 -> 40.592 | H26: =(G26*K$1) -> 51.1093872 | I26: =ROUND(F26*H26,2) -> 1022.19 | J26: =CPU!I210 -> 40.592
A27: 8.17 | B27: ORSE | C27: 10280/ORSE | D27: MANTA EM LÃ DE VIDRO | E27: m² | F27: 66.278 | G27: 15.05 | H27: 18.880225 | I27: 1251.34 | J27: 15.05
A28: 8.18 | B28: CPU | C28: CPU009 | D28: CHAPA XADREZ EM ALUMINIO PARA PISO e:3mm, INCLUSO REBITE PARA FIXAÇÃO - APENAS INSTALAÇÃO | E28: m² | F28: 56.544 | G28: 355.0632 | H28: =(G28*K$1) -> 447.0600751 | I28: =ROUND(F28*H28,2) -> 25278.56 | J28: =CPU!I197 -> 355.0632
A29: 8.19 | B29: Sinapi | C29: 104723 | D29: PAREDE COM SISTEMA EM CHAPAS DE GESSO PARA DRYWALL, USO INTERNO, COM DUAS FACES DUPLAS E ESTRUTURA METÁLICA COM GUIAS DUPLAS PARA PAREDES COM ÁREA LÍQUIDA MENOR QUE 6 M2, COM VÃOS. | E29: m² | F29: 42.8 | G29: 211.95 | H29: 266.866245 | I29: =ROUND(F29*H29,2) -> 11421.88 | J29: 211.95
A30: 8.20 | B30: Sinapi | C30: 96486 | D30: FORRO EM RÉGUAS DE PVC, LISO, PARA AMBIENTES COMERCIAIS, INCLUSIVE ESTRUTURA BIDIRECIONAL DE FIXAÇÃO | E30: m² | F30: 54.112 | G30: 60.97 | H30: 76.767327 | I30: =ROUND(F30*H30,2) -> 4154.03 | J30: 60.97
A31: 8.21 | D31: PINTURAS | I31: =SUM(I32:I32) -> 11616.39
A32: 8.22 | B32: Sinapi | C32: 100751 | D32: PINTURA COM TINTA EPOXÍDICA DE ACABAMENTO PULVERIZADA SOBRE PERFIL METÁLICO EXECUTADO EM FÁBRICA (02 DEMÃOS). | E32: m² | F32: 263.9 | G32: =J32 -> 34.96 | H32: =(G32*K$1) -> 44.018136 | I32: =ROUND(F32*H32,2) -> 11616.39 | J32: 34.96
A33: 8.23 | D33: COBERTURAS | I33: =SUM(I34:I36) -> 42340.17
A34: 8.24 | B34: ORSE | C34: 13874/ORSE | D34: ESTRUTURA METALICA P/ COBERTURA DE CRECHE PADRÃO 1 DO PADRÃO FNDE, EM LIGTH STEEL FRAME, COM PERFIS UE70 MONTANTES DE TUBO UE70, INCLUSIVE FORNECIMENTO E MONTAGEM. EXCLUSIVE TELHAS | E34: m² | F34: 98.42 | G34: =J34 -> 113.51 | H34: =(G34*K$1) -> 142.920441 | I34: =ROUND(F34*H34,2) -> 14066.23 | J34: 113.51
A35: 8.25 | B35: Sinapi | C35: 94216 | D35: TELHAMENTO COM TELHA METÁLICA TERMOACÚSTICA E = 30 MM, COM ATÉ 2 ÁGUAS, INCLUSO IÇAMENTO | E35: m² | F35: 98.42 | G35: =J35 -> 213.13 | H35: =(G35*K$1) -> 268.351983 | I35: =ROUND(F35*H35,2) -> 26411.2 | J35: 213.13
A36: 8.26 | B36: Sinapi | C36: 94228 | D36: CALHA EM CHAPA DE AÇO GALVANIZADO NÚMERO 24, DESENVOLVIMENTO DE 50 CM, INCLUSO TRANSPORTE VERTICAL. AF_07/2019 | E36: m | F36: 18 | G36: 82.19 | H36: 103.485429 | I36: =ROUND(F36*H36,2) -> 1862.74 | J36: 82.19
A37: 8.27 | D37: CONSTRUÇÃO CIVIL | I37: =SUM(I38:I42) -> 22978.92
A38: 8.28 | B38: Sinapi | C38: 100702 | D38: PORTA DE CORRER DE ALUMÍNIO, COM DUAS FOLHAS PARA VIDRO, INCLUSO VIDRO LISO INCOLOR, FECHADURA E PUXADOR, SEM ALIZAR. | E38: m² | F38: 4.85 | G38: =J38 -> 496.49 | H38: =(G38*K$1) -> 625.130559 | I38: =ROUND(F38*H38,2) -> 3031.88 | J38: 496.49
A39: 8.29 | B39: Sinapi | C39: 91341 | D39: PORTA EM ALUMÍNIO DE ABRIR TIPO VENEZIANA COM GUARNIÇÃO, FIXAÇÃO COM PARAFUSOS - FORNECIMENTO E INSTALAÇÃO. | E39: m² | F39: 3.8 | G39: 709.47 | H39: =(G39*K$1) -> 893.293677 | I39: =ROUND(F39*H39,2) -> 3394.52 | J39: 709.47
A40: 8.30 | B40: Sinapi | C40: 100674 | D40: CAIXILHO FIXO DE ALUMÍNIO PARA VIDRO (VIDRO INCLUSO), BATENTE/ REQUADRO DE 4 A 14 CM, SEM GUARNIÇÃO/ ALIZAR, FIXAÇÃO COM PARAFUSOS, VEDAÇÃO COM SILICONE, EXCLUSIVE CONTRAMARCO - FORNECIMENTO E INSTALAÇÃO. AF_11/2024 | E40: m² | F40: 8.85 | G40: 794.85 | H40: 1000.795635 | I40: =ROUND(F40*H40,2) -> 8857.04 | J40: 794.85
A41: 8.31 | B41: CPU | C41: CPU007 | D41: REVESTIMENTO CERÂMICO PARA PISO COM PLACAS TIPO ESMALTADA DE DIMENSÕES 45x45cm COM ARGAMASSA AC III | E41: m² | F41: 60 | G41: 68.988868 | H41: 86.8638837 | I41: =ROUND(F41*H41,2) -> 5211.83 | J41: =CPU!I173 -> 68.988868
A42: 8.32 | B42: Sinapi | C42: 94228 | D42: CALHA EM CHAPA DE AÇO GALVANIZADO NÚMERO 24, DESENVOLVIMENTO DE 50 CM, INCLUSO TRANSPORTE VERTICAL. AF_07/2019 | E42: m | F42: 24 | G42: 82.19 | H42: 103.485429 | I42: =ROUND(F42*H42,2) -> 2483.65 | J42: 82.19
A43: 8.33 | D43: INSTALAÇÕES PREDIAIS | I43: =SUM(I44:I47) -> 13202.47
A44: 8.34 | B44: CPU | C44: CPU001 | D44: =[2]CPU!$A$65 -> EXECUÇÃO DE INSTALAÇÕES HIDROSSANITÁRIAS, EXCLUSIVE EQUIPAMENTOS | E44: =[2]CPU!$I$78 -> cj | F44: 1 | G44: =J44 -> 2630 | H44: =(G44*K$1) -> 3311.433 | I44: =ROUND(F44*H44,2) -> 3311.43 | J44: =CPU!I45 -> 2630
A45: 8.35 | B45: CPU | C45: CPU002 | D45: =[2]CPU!$A$78 -> EXECUÇÃO DE INSTALAÇÕES ELÉTRICAS, EXCLUSIVE EQUIPAMENTOS | E45: =[2]CPU!$I$78 -> cj | F45: 1 | G45: 2742 | H45: =(G45*K$1) -> 3452.4522 | I45: =ROUND(F45*H45,2) -> 3452.45 | J45: =CPU!I58 -> 2742
A46: 8.36 | B46: SINAPI | C46: 98052 | D46: TANQUE SÉPTICO CIRCULAR, EM CONCRETO PRÉ-MOLDADO, DIÂMETRO INTERNO = 1,10 M, ALTURA INTERNA = 2,50 M, VOLUME ÚTIL: 2138,2 L (PARA 5 CONTRIBUINTES). | E46: UND | F46: 1 | G46: =J46 -> 2061.49 | H46: 2595.622059 | I46: =ROUND(F46*H46,2) -> 2595.62 | J46: 2061.49
A47: 8.37 | B47: SINAPI | C47: 98062 | D47: SUMIDOURO CIRCULAR, EM CONCRETO PRÉ-MOLDADO, DIÂMETRO INTERNO = 1,88 M, ALTURA INTERNA = 2,00 M, ÁREA DE INFILTRAÇÃO: 13,1 m² (PARA 5 CONTRIBUINTES) | E47: UND | F47: 1 | G47: 3052.16 | H47: 3842.974656 | I47: 3842.97 | J47: 3052.16
A48: 8.38 | D48: SERVIÇOS DIVERSOS | I48: =SUM(I49:I54) -> 32355.06
A49: 8.39 | B49: CPU | C49: CPU003 | D49: =[2]CPU!$A$140 -> CORTE DE CONTAINER PARA ESQUADRIAS | E49: =[2]CPU!$I$140 -> m² | F49: 12.65 | G49: =J49 -> 176.28028 | H49: =(G49*K$1) -> 221.9545005 | I49: =ROUND(F49*H49,2) -> 2807.72 | J49: =CPU!I78 -> 176.28028
A50: 8.40 | B50: CPU | C50: CPU004 | D50: =[2]CPU!$A$182 -> MODIFICAÇÕES NO CONTAINER COM CORTE POR ESMERILHADEIRA | E50: =[2]CPU!$I$182 -> m | F50: 57.68 | G50: 91.7072 | H50: =(G50*K$1) -> 115.4685355 | I50: 6660.23 | J50: =CPU!I120 -> 91.7072
A51: 8.41 | B51: CPU | C51: CPU005 | D51: =[2]CPU!$A$200 -> MODIFICAÇÕES NO CONTAINER UNIÃO ATRAVÉS DO PROCESSO DE SOLDAGEM, INCLUSO IÇAMENTO DO CONTAINER | E51: =[2]CPU!$I$200 -> m | F51: 40.8 | G51: 337.00267 | H51: 424.3200618 | I51: 17312.26 | J51: =CPU!I142 -> 337.00267
A52: 8.42 | B52: ORSE | C52: 00900/ORSE | D52: ESCADA DE FERRO COM GUARDA-CORPO | E52: m | F52: 0.9 | G52: 601.49 | H52: 754.569205 | I52: 679.11 | J52: 601.49
A53: 8.43 | B53: CPU | C53: CPU011 | D53: GUARDA-CORPO DE AÇO CARBONO, MONTANTES TUBULARES DE 1.1/2" ESPAÇADOS EM 0,75M, ALTURA APROXIMADA DE 0,90M, PREPARADO COM FUNDO E TINTA EPÓXI NA COR AMARELA | E53: m | F53: 1.9 | G53: 454.721783 | H53: 572.540197 | I53: 1087.83 | J53: =CPU!I233 -> 454.721783
A54: 8.44 | B54: CPU | C54: CPU013 | D54: FORNECIMENTO E INSTALAÇÃO DE SUPORTE PARA CAIXA D'ÁGUA EM METALON | E54: un | F54: 1 | G54: 3024.309824 | H54: 3807.9085 | I54: 3807.91 | J54: =CPU!I287 -> 3024.309824
A55: 8.45 | D55: MATERIAIS | I55: =SUM(I56:I104) -> 162276.37
A56: 8.46 | B56: Cotação | D56: CONTAINER HIGH CUBE 40 PÉS 12,2X2,3X2,9 (COMPXLARGXALTU) | E56: un | F56: 2 | G56: =J56 -> 21140 | H56: =(G56*K$2) -> 24015.04 | I56: =ROUND(F56*H56,2) -> 48030.08 | J56: =CPU!I267 -> 21140
A57: 8.47 | B57: Sinapi | C57: 89356 | D57: TUBO PVC, SOLDAVEL, DN 25 MM, AGUA FRIA (NBR-5648) | E57: m | F57: 6 | G57: 21.47 | H57: =(G57*K$2) -> 24.38992 | I57: 146.34 | J57: 21.47
A58: 8.48 | B58: Sinapi | C58: 89357 | D58: TUBO PVC, SOLDAVEL, DN 32 MM, AGUA FRIA (NBR-5648) | E58: m | F58: 18 | G58: 29.77 | H58: 33.81872 | I58: 608.74 | J58: 29.77
A59: 8.49 | B59: Sinapi | C59: 89448 | D59: TUBO PVC, SOLDAVEL, DN 40 MM, AGUA FRIA (NBR-5648) | E59: m | F59: 3 | G59: 15.9 | H59: 18.0624 | I59: 54.19 | J59: 15.9
A60: 8.50 | B60: Sinapi | C60: 9838 | D60: TUBO PVC SERIE NORMAL, DN 50 MM, PARA ESGOTO PREDIAL (NBR 5688) | E60: m | F60: 30 | G60: 10.1 | H60: 11.4736 | I60: 344.21 | J60: 10.1
A61: 8.51 | B61: Sinapi | C61: 89362 | D61: JOELHO 90 GRAUS, PVC, SOLDÁVEL, DN 25MM, INSTALADO EM RAMAL OU SUB-RAMAL DE ÁGUA - FORNECIMENTO E INSTALAÇÃO. AF_06/2022 | E61: un | F61: 5 | G61: 8.36 | H61: 9.49696 | I61: 47.48 | J61: 8.36
A62: 8.52 | B62: Sinapi | C62: 89367 | D62: JOELHO 90 GRAUS, PVC, SOLDÁVEL, DN 32MM, INSTALADO EM RAMAL OU SUB-RAMAL DE ÁGUA - FORNECIMENTO E INSTALAÇÃO. AF_06/2022 | E62: un | F62: 4 | G62: 11.66 | H62: 13.24576 | I62: 52.98 | J62: 11.66
A63: 8.53 | B63: Sinapi | C63: 89497 | D63: JOELHO 90 GRAUS, PVC, SOLDÁVEL, DN 40MM, INSTALADO EM PRUMADA DE ÁGUA - FORNECIMENTO E INSTALAÇÃO. AF_06/2022 | E63: un | F63: 3 | G63: 11.93 | H63: 13.55248 | I63: 40.66 | J63: 11.93
A64: 8.54 | B64: Sinapi | C64: 3874 | D64: LUVA SOLDAVEL COM BUCHA DE LATÃO DN25X1/2" | E64: un | F64: 5 | G64: 5.94 | H64: 6.74784 | I64: 33.74 | J64: 5.94
A65: 8.55 | B65: Sinapi | C65: 12909 | D65: CAP PVC, SOLDAVEL, DN 50 MM, SERIE NORMAL, PARA ESGOTO PREDIAL | E65: un | F65: 3 | G65: 4.21 | H65: 4.78256 | I65: 14.35 | J65: 4.21
A66: 8.56 | B66: Sinapi | C66: 7136 | D66: TE DE REDUCAO, PVC, SOLDAVEL, 90 GRAUS, 32 MM X 25 MM, PARA AGUA FRIA PREDIAL | E66: un | F66: 5 | G66: 6.63 | H66: 7.53168 | I66: 37.66 | J66: 6.63
A67: 8.57 | B67: Sinapi | C67: 97 | D67: ADAPTADOR PVC SOLDAVEL, COM FLANGE E ANEL DE VEDACAO, 32 MM X 1", PARA CAIXA D'ÁGUA | E67: un | F67: 1 | G67: 18.39 | H67: 20.89104 | I67: 20.89 | J67: 18.39
A68: 8.58 | B68: Sinapi | C68: 98 | D68: ADAPTADOR PVC SOLDAVEL, COM FLANGE E ANEL DE VEDACAO, 40 MM X 1 1/4", PARA CAIXA D'ÁGUA | E68: un | F68: 1 | G68: 27.53 | H68: 31.27408 | I68: 31.27 | J68: 27.53
A69: 8.59 | B69: Sinapi | C69: 11871 | D69: CAIXA D'AGUA EM POLIETILENO 500 LITROS, COM TAMPA | E69: un | F69: 1 | G69: =J69 -> 483.32 | H69: 549.05152 | I69: 549.05 | J69: 483.32
A70: 8.60 | B70: Sinapi | C70: 94795 | D70: TORNEIRA DE BOIA PARA CAIXA D'ÁGUA, ROSCÁVEL, 1/2" - FORNECIMENTO E INSTALAÇÃO. AF_08/2021 | E70: un | F70: 1 | G70: 45.46 | H70: 51.64256 | I70: 51.64 | J70: 45.46
A71: 8.61 | B71: Sinapi | C71: 799 | D71: BUCHA DE REDUCAO PVC, ROSCAVEL, 1" X 1/2" | E71: un | F71: 1 | G71: 3.48 | H71: 3.95328 | I71: 3.95 | J71: 3.48
A72: 8.62 | B72: Sinapi | C72: 11746 | D72: VALVULA DE ESFERA BRUTA EM BRONZE, BITOLA 1” | E72: un | F72: 1 | G72: 81.65 | H72: 92.7544 | I72: 92.75 | J72: 81.65
A73: 8.63 | B73: Sinapi | C73: 4177 | D73: NIPLE DE FERRO GALVANIZADO, COM ROSCA BSP, DE 1/2" | E73: un | F73: 1 | G73: 5.3 | H73: 6.0208 | I73: =ROUND(F73*H73,2) -> 6.02 | J73: 5.3
A74: 8.64 | B74: Sinapi | C74: 3855 | D74: LUVA SOLDAVEL COM BUCHA DE LATÃO DN25X1/2" | E74: un | F74: 1 | G74: 5.12 | H74: 5.81632 | I74: =ROUND(F74*H74,2) -> 5.82 | J74: 5.12
A75: 8.65 | B75: Sinapi | C75: 11674 | D75: REGISTRO DE ESFERA, PVC, COM VOLANTE, VS, SOLDAVEL, DN 25 MM, COM CORPO DIVIDIDO | E75: un | F75: 1 | G75: 17.98 | H75: 20.42528 | I75: =ROUND(F75*H75,2) -> 20.43 | J75: 17.98
A76: 8.66 | B76: Sinapi | C76: 35277 | D76: CAIXA DE GORDURA EM PVC, DIAMETRO MINIMO 300 MM, DIAMETRO DE SAIDA 100 MM CAPACIDADE APROXIMADA 18 LITROS, COM TAMPA E CESTO | E76: un | F76: 2 | G76: 303.5 | H76: 344.776 | I76: =ROUND(F76*H76,2) -> 689.55 | J76: 303.5
A77: 8.67 | B77: Sinapi | C77: 89482 | D77: CAIXA SIFONADA, PVC, DN 100 X 100 X 50 MM, FORNECIDA E INSTALADA EM RAMAIS DE ENCAMINHAMENTO DE ÁGUA PLUVIAL. AF_06/2022 | E77: un | F77: 5 | G77: 32.89 | H77: 37.36304 | I77: 186.82 | J77: 32.89
A78: 8.68 | B78: Sinapi | C78: 89502 | D78: JOELHO 45 GRAUS, PVC, SOLDÁVEL, DN 50MM, INSTALADO EM PRUMADA DE ÁGUA - FORNECIMENTO E INSTALAÇÃO. AF_06/2022 | E78: un | F78: 4 | G78: 15.19 | H78: 17.25584 | I78: 69.02 | J78: 15.19
A79: 8.69 | B79: Sinapi | C79: 89501 | D79: JOELHO 90 GRAUS, PVC, SOLDÁVEL, DN 50MM, INSTALADO EM PRUMADA DE ÁGUA - FORNECIMENTO E INSTALAÇÃO. AF_06/2022 | E79: un | F79: 10 | G79: 12.71 | H79: 14.43856 | I79: 144.39 | J79: 12.71
A80: 8.70 | B80: Sinapi | C80: 103995 | D80: LUVA, PVC, SOLDÁVEL, DN 50MM, INSTALADO EM RAMAL DE DISTRIBUIÇÃO DE ÁGUA - FORNECIMENTO E INSTALAÇÃO. AF_06/2022 | E80: un | F80: 21 | G80: 13.32 | H80: 15.13152 | I80: 317.76 | J80: 13.32
A81: 8.71 | B81: Sinapi | C81: 89567 | D81: JUNÇÃO SIMPLES, PVC, SERIE R, ÁGUA PLUVIAL, DN 100 X 100 MM, JUNTA ELÁSTICA, FORNECIDO E INSTALADO EM RAMAL DE ENCAMINHAMENTO. AF_06/2022 | E81: un | F81: 6 | G81: 76.19 | H81: 86.55184 | I81: 519.31 | J81: 76.19
A82: 8.72 | B82: Sinapi | C82: 12909 | D82: CAP PVC, SOLDAVEL, DN 50 MM, SERIE NORMAL, PARA ESGOTO | E82: un | F82: 1 | G82: 4.21 | H82: 4.78256 | I82: 4.78 | J82: 4.21
A83: 8.73 | B83: Sinapi | C83: 34628 | D83: DISJUNTOR TIPO DIN/IEC, BIPOLAR 63 A | E83: un | F83: 1 | G83: 62.42 | H83: 70.90912 | I83: 70.91 | J83: 62.42
A84: 8.74 | B84: Sinapi | C84: 34616 | D84: DISJUNTOR TIPO DIN/IEC, BIPOLAR DE 6 ATE 32A | E84: un | F84: 6 | G84: 44.26 | H84: 50.27936 | I84: 301.68 | J84: 44.26
A85: 8.75 | B85: ORSE | C85: 07943/ORSE | D85: DISJUNTOR BIPOLAR DR 25A - DISPOSITIVO DIFERENCIAL RESIDUAL, TIPO AC, 30MA | E85: un | F85: 3 | G85: 278.5 | H85: 309.135 | I85: 927.41 | J85: 278.5
A86: 8.76 | B86: Sinapi | C86: 39805 | D86: QUADRO DE DISTRIBUICAO, EM PVC, DE EMBUTIR, COM BARRAMENTO TERRA / NEUTRO, PARA 12 DISJUNTORES NEMA OU 16 DISJUNTORES DIN | E86: un | F86: 1 | G86: 206.34 | H86: 234.40224 | I86: 234.4 | J86: 206.34
A87: 8.77 | B87: Sinapi | C87: 1014 | D87: CABO DE COBRE, FLEXIVEL, CLASSE 4 OU 5, ISOLACAO EM PVC/A, ANTICHAMA BWF-B, 1 CONDUTOR, 450/750 V, SECAO NOMINAL 2,5 MM2 | E87: m | F87: 397.5 | G87: 2.62 | H87: 2.97632 | I87: 1183.09 | J87: 2.62
A88: 8.78 | B88: Sinapi | C88: 39471 | D88: DISPOSITIVO DPS CLASSE II, 1 POLO, TENSAO MAXIMA DE 275 V, CORRENTE MAXIMA DE *45* KA (TIPO AC) | E88: un | F88: 2 | G88: 88.88 | H88: 100.96768 | I88: 201.94 | J88: 88.88
A89: 8.79 | B89: Sinapi | C89: 981 | D89: CABO DE COBRE, FLEXIVEL, CLASSE 4 OU 5, ISOLACAO EM PVC/A, ANTICHAMA BWF-B, 1 CONDUTOR, 450/750 V, SECAO NOMINAL 4 MM2 | E89: m | F89: 77.58 | G89: 4.35 | H89: 4.9416 | I89: 383.37 | J89: 4.35
A90: 8.80 | B90: Sinapi | C90: 993 | D90: CABO DE COBRE, FLEXIVEL, CLASSE 4 OU 5, ISOLACAO EM PVC/A, ANTICHAMA BWF-B, COBERTURA PVC-ST1, ANTICHAMA BWF-B, 1 CONDUTOR, 0,6/1 KV, SECAO NOMINAL 1,5 MM2 | E90: m | F90: 396.4 | G90: 2.23 | H90: 2.53328 | I90: 1004.19 | J90: 2.23
A91: 8.81 | B91: Sinapi | C91: 38076 | D91: TOMADAS (2 MODULOS) 2P+T 10A, 250V, CONJUNTO MONTADO PARA EMBUTIR 4" X 2" (PLACA + SUPORTE + MODULOS) | E91: un | F91: 11 | G91: 16.02 | H91: 18.19872 | I91: 200.19 | J91: 16.02
A92: 8.82 | B92: Sinapi | C92: 1871 | D92: CAIXA OCTOGONAL DE FUNDO MOVEL, EM PVC, DE 3" X 3", PARA ELETRODUTO FLEXIVEL CORRUGADO | E92: un | F92: 8 | G92: 2.41 | H92: 2.73776 | I92: 21.9 | J92: 2.41
A93: 8.83 | B93: Sinapi | C93: 2689 | D93: ELETRODUTO PVC FLEXIVEL CORRUGADO, COR AMARELA, DE 20 MM | E93: m | F93: 15.53 | G93: 2.61 | H93: 2.96496 | I93: 46.05 | J93: 2.61
A94: 8.84 | B94: Sinapi | C94: 2688 | D94: ELETRODUTO PVC FLEXIVEL CORRUGADO, COR AMARELA, DE 25 MM | E94: m | F94: 71.74 | G94: 2.83 | H94: 3.21488 | I94: 230.64 | J94: 2.83
A95: 8.85 | B95: Sinapi | C95: 20111 | D95: FITA ISOLANTE ADESIVA ANTICHAMA, USO ATE 750 V, EM ROLO DE 19 MM X 20 M | E95: un | F95: 6 | G95: 9 | H95: 10.224 | I95: 61.34 | J95: 9
A96: 8.86 | B96: Sinapi | C96: 1873 | D96: CAIXA DE PASSAGEM, EM PVC, DE 4" X 4", PARA ELETRODUTO FLEXIVEL CORRUGADO | E96: un | F96: 1 | G96: 2.67 | H96: 3.03312 | I96: 3.03 | J96: 2.67
A97: 8.87 | B97: Sinapi | C97: 38063 | D97: INTERRUPTOR PARALELO 10A, 250V, CONJUNTO MONTADO PARA EMBUTIR 4" X 2" (PLACA + SUPORTE + MODULO) | E97: un | F97: 4 | G97: 8.62 | H97: 9.79232 | I97: 39.17 | J97: 8.62
A98: 8.88 | B98: Sinapi | C98: 38078 | D98: INTERRUPTOR PARALELO + TOMADA 2P+T 10A, 250V, CONJUNTO MONTADO PARA EMBUTIR 4" X 2" (PLACA + SUPORTE + MODULOS) | E98: un | F98: 1 | G98: 14.79 | H98: 16.80144 | I98: 16.8 | J98: 14.79
A99: 8.89 | B99: Sinapi | C99: 38775 | D99: LUMINARIA TIPO TARTARUGA PARA AREA EXTERNA EM ALUMINIO, COM GRADE, PARA 1 LAMPADA, BASE E27, POTENCIA MAXIMA 40/60 W (NAO INCLUI LAMPADA) | E99: un | F99: 8 | G99: 80.79 | H99: 91.77744 | I99: 734.22 | J99: 80.79
A100: 8.90 | B100: Sinapi | C100: 10569 | D100: CAIXA DE PASSAGEM / DERIVACAO / LUZ, OCTOGONAL 4 X4, EM ACO ESMALTADA, COM FUNDO MOVEL SIMPLES (FMS) | E100: un | F100: 6 | G100: 3.31 | H100: 3.76016 | I100: =ROUND(F100*H100,2) -> 22.56 | J100: 3.31
A101: 8.91 | B101: Sinapi | C101: 100954 | D101: TRANSPORTE COM CAMINHÃO CARROCERIA COM GUINDAUTO (MUNCK), MOMENTO MÁXIMO DE CARGA 11,7 TM, EM VIA INTERNA (DENTRO DO CANTEIRO - UNIDADE: TXKM). AF_07/2020 | E101: TXKM | F101: 600 | G101: 8.66 | H101: 9.83776 | I101: =ROUND(F101*H101,2) -> 5902.66 | J101: 8.66
A102: 8.92 | B102: Sinapi | C102: 100788 | D102: KIT CAVALETE PARA GÁS - SEM MEDIDOR OU REGULADOR - ENTRADA INDIVIDUAL PRINCIPAL, EM AÇO GALVANIZADO DN 15 E 25 MM (1/2" E 1") - FORNECIMENTO E INSTALAÇÃO | E102: und | F102: 1 | G102: 733.18 | H102: 832.89248 | I102: =ROUND(F102*H102,2) -> 832.89 | J102: 733.18
A103: 8.93 | B103: CPU | C103: CPU008 | D103: CHAPA XADREZ EM ALUMINIO PARA PISO e:3mm, INCLUSO REBITE PARA FIXAÇÃO - APENAS MATERIAL | E103: m² | F103: 56.544 | G103: 486.7224 | H103: 552.9166464 | I103: =ROUND(F103*H103,2) -> 31264.12 | J103: =CPU!I184 -> 486.7224
A104: 8.94 | B104: CPU | C104: CPU006 | D104: REVESTIMENTO DE PAREDES EM CHAPAS DE AÇO INOXIDÁVEL AISI 304 - APENAS MATERIAL | E104: m² | F104: 160.29 | G104: 365.04 | H104: 414.68544 | I104: =ROUND(F104*H104,2) -> 66469.93 | J104: =CPU!I154 -> 365.04

Sheet CPU
A1: MINISTÉRIO DO DESENVOLVIMENTO REGIONAL - MDR
A2: COMPANHIA DE DESENVOLVIMENTO DOS VALES DO SÃO FRANCISCO E DO PARNAÍBA
A3: SEDE
A4: PLANILHA ORÇAMENTÁRIA DE ESTIMATIVA GERAL PARA O ESTADO DA PARAÍBA | H4: Base SINAPI-PB 03/2025 ORSE 02/2025
H5: Data: Maio/2025
A6: COMPOSIÇÕES DE PREÇO UNITÁRIO
A9: COMPOSIÇÃO DE PREÇO UNITÁRIO | I9: CPU003
A10: DESCRIÇÃO DO SERVIÇO | H10: DATA BASE: | I10: 2024-07-01
A11: ADMINISTRAÇÃO LOCAL | H11: UNIDADE: | I11: mês
A12: MATERIAL
A13: BASE | B13: CÓDIGO | C13: DISCRIMINAÇÃO | D13: UNI | E13: QUANT. | F13: PROD | G13: P.UN.PROD | H13: P.UN.IMPR | I13: P.TOTAL
A14: MERCADO | C14: ALUGUEL | D14: mês | E14: 1 | H14: 800 | I14: =E14*H14 -> 800
A15: MERCADO | C15: TELEFONE E INTERNET | D15: mês | E15: 1 | H15: 99.9 | I15: 99.9
A16: MERCADO | C16: ENERGIA ELÉTRICA | D16: kwh | E16: 200 | H16: 0.53 | I16: 106
A17: MERCADO | C17: ÁGUA E ESGOTO | D17: mês | E17: 1 | H17: 100 | I17: 100
A18: MERCADO | C18: MATERIAL PARA ESCRITÓRIO | D18: mês | E18: 1 | H18: 150 | I18: 150
A19: MERCADO | C19: MATERIAL DE LIMPEZA | D19: mês | E19: 1 | H19: 50 | I19: 50
A20: SUB-TOTAL | I20: =SUM(I14:I19) -> 1305.9
A21: MÃO DE OBRA
A22: BASE | B22: CÓDIGO | C22: DISCRIMINAÇÃO | D22: UNI | E22: QUANT. | H22: P.UNIT. | I22: P.TOTAL
A23: MERCADO | C23: ENGENHEIRO DE OBRA | D23: mês | E23: 1 | H23: 8483 | I23: =E23*H23 -> 8483
A24: MERCADO | C24: MESTRE DE OBRAS | D24: mês | E24: 1 | H24: 4515.12 | I24: =E24*H24 -> 4515.12
A25: MERCADO | C25: AUXILIAR DE ESCRITORIO COM ENCARGOS COMPLEMENTARES | D25: mês | E25: 1 | H25: 1100 | I25: =E25*H25 -> 1100
A26: MERCADO | C26: TÉCNICO EM SEGURANÇA DO TRABALHO | D26: h | E26: 44 | H26: 27.26 | I26: =E26*H26 -> 1199.44
A27: MERCADO | C27: VIGIA | D27: mês | E27: 1 | H27: 1100 | I27: =E27*H27 -> 1100
A28: SUB-TOTAL | I28: =SUM(I23:I27) -> 16397.56
A29: PRODUÇÃO DA EQUIPE | D29: 1 | E29: CUSTO | I29: =I28+I20 -> 17703.46
A30: TOTAL - R$ | I30: =I29/D29 -> 17703.46
A31: BDI % | I31: 1
A32: TOTAL DO SERVIÇO - R$ | I32: =I30*I31 -> 17703.46
A34: COMPOSIÇÃO DE PREÇO UNITÁRIO | I34: CPU001
A35: DESCRIÇÃO DO SERVIÇO | H35: DATA BASE: | I35: 2025-03-01
A36: EXECUÇÃO DE INSTALAÇÕES HIDROSSANITÁRIAS, EXCLUSIVE EQUIPAMENTOS | H36: UNIDADE: | I36: cj
A37: MÃO DE OBRA
A38: BASE | B38: CÓDIGO | C38: DISCRIMINAÇÃO | D38: UNI | E38: QUANT. | H38: P.UNIT. | I38: P.TOTAL
A39: SINAPI | B39: 88316 | C39: SERVENTE DE OBRAS | D39: h | E39: 80 | H39: 20.27 | I39: =E39*H39 -> 1621.6
A40: SINAPI | B40: 88309 | C40: PEDREIRO | D40: h | E40: 40 | H40: 25.21 | I40: =E40*H40 -> 1008.4
A41: SUB-TOTAL | I41: =SUM(I39:I40) -> 2630
A42: PRODUÇÃO DA EQUIPE | D42: 1 | E42: CUSTO | I42: =SUM(I41) -> 2630
A43: TOTAL - R$ | I43: =I42/D42 -> 2630
A44: BDI % | I44: 1
A45: TOTAL DO SERVIÇO - R$ | I45: =I43*I44 -> 2630
A47: COMPOSIÇÃO DE PREÇO UNITÁRIO | I47: CPU002
A48: DESCRIÇÃO DO SERVIÇO | H48: DATA BASE: | I48: 2025-03-01
A49: EXECUÇÃO DE INSTALAÇÕES ELÉTRICAS, EXCLUSIVE EQUIPAMENTOS | H49: UNIDADE: | I49: cj
A50: MÃO DE OBRA
A51: BASE | B51: CÓDIGO | C51: DISCRIMINAÇÃO | D51: UNI | E51: QUANT. | H51: P.UNIT. | I51: P.TOTAL
A52: SINAPI | B52: 88247 | C52: AUXILIAR DE ELETRICISTA | D52: h | E52: 80 | H52: 21.5 | I52: =E52*H52 -> 1720
A53: SINAPI | B53: 88264 | C53: ELETRICISTA | D53: h | E53: 40 | H53: 25.55 | I53: =E53*H53 -> 1022
A54: SUB-TOTAL | I54: =SUM(I52:I53) -> 2742
A55: PRODUÇÃO DA EQUIPE | D55: 1 | E55: CUSTO | I55: =SUM(I54) -> 2742
A56: TOTAL - R$ | I56: =I55/D55 -> 2742
A57: BDI % | I57: 1
A58: TOTAL DO SERVIÇO - R$ | I58: =I56*I57 -> 2742
A62: COMPOSIÇÃO DE PREÇO UNITÁRIO | I62: CPU003
A63: DESCRIÇÃO DO SERVIÇO | H63: DATA BASE: | I63: 2025-03-01
A64: CORTE DE CONTAINER PARA ESQUADRIAS | H64: UNIDADE: | I64: m²
A65: MATERIAL
A66: BASE | B66: CÓDIGO | C66: DISCRIMINAÇÃO | D66: UNI | E66: QUANT. | H66: P.UNIT. | I66: P.TOTAL
A67: SINAPI | B67: 11359 | C67: ESMERILHADEIRA ANGULAR ELETRICA, DIAMETRO DO DISCO 7 '' (180 MM), ROTACAO 8500RPM, POTENCIA 2400 W | D67: un | E67: 0.071 | H67: 792.68 | I67: =E67*H67 -> 56.28028
A68: SINAPI | B68: 44531 | C68: DISCO DE CORTE DIAMANTADO SEGMENTADO DIAMETRO DE 180 MM PARA ESMERILHADEIRA 7 " | D68: un | E68: 1 | H68: 94.63 | I68: =E68*H68 -> 94.63
A69: SUB-TOTAL | I69: =SUM(I67:I68) -> 150.91028
A70: MÃO DE OBRA
A71: BASE | B71: CÓDIGO | C71: DISCRIMINAÇÃO | D71: UNI | E71: QUANT. | H71: P.UNIT. | I71: P.TOTAL
A72: SINAPI | B72: 88317 | C72: SOLDADOR COM ENCARGOS COMPLEMENTARES | D72: h | E72: 0.5 | H72: 25.72 | I72: =E72*H72 -> 12.86
A73: SINAPI | B73: 88315 | C73: SERRALHEIRO COM ENCARGOS COMPLEMENTARES | D73: h | E73: 0.5 | H73: 25.02 | I73: =E73*H73 -> 12.51
A74: SUB-TOTAL | I74: =SUM(I72:I73) -> 25.37
A75: PRODUÇÃO DA EQUIPE | D75: 1 | E75: CUSTO | I75: =I74+I69 -> 176.28028
A76: TOTAL - R$ | I76: =I75/D75 -> 176.28028
A77: BDI % | I77: 1
A78: TOTAL DO SERVIÇO - R$ | I78: =I76*I77 -> 176.28028
A80: COMPOSIÇÃO DE PREÇO UNITÁRIO | I80: CPU010
A81: DESCRIÇÃO DO SERVIÇO | H81: DATA BASE: | I81: 2024-07-01
A82: FORNECIMENTO E MONTAGEM DE ESTRUTURA PARA COBERTURA COM ÁREA TOTAL DE 86,27 M² INCLUINDO CALHA E TELHA SANDUÍCHE | H82: UNIDADE: | I82: cj
A83: MÃO DE OBRA
A84: BASE | B84: CÓDIGO | C84: DISCRIMINAÇÃO | D84: UNI | E84: QUANT. | H84: P.UNIT. | I84: P.TOTAL
A85: COTAÇÃO | C85: FABRICAÇÃO E MONTAGEM DE ESTRUTURA METÁLICA PARA COBERTURA DE UNIDADE COM ÁREA TOTAL DE 86,26 M² | D85: cj | E85: 1 | H85: 24877.99 | I85: =E85*H85 -> 24877.99
A86: SUB-TOTAL | I86: =SUM(I85:I85) -> 24877.99
A87: PRODUÇÃO DA EQUIPE | D87: 1 | E87: CUSTO | I87: =SUM(I86) -> 24877.99
A88: TOTAL - R$ | I88: =I87/D87 -> 24877.99
A89: BDI % | I89: 1
A90: TOTAL DO SERVIÇO - R$ | I90: =I88*I89 -> 24877.99
A92: COMPOSIÇÃO DE PREÇO UNITÁRIO | I92: CPU011
A93: DESCRIÇÃO DO SERVIÇO | H93: DATA BASE: | I93: 2024-07-01
A94: FORNECIMENTO E MONTAGEM DE ESTRUTURA PARA COBERTURA COM ÁREA TOTAL DE 137,9 M² INCLUINDO CALHA E TELHA SANDUÍCHE | H94: UNIDADE: | I94: cj
A95: MÃO DE OBRA
A96: BASE | B96: CÓDIGO | C96: DISCRIMINAÇÃO | D96: UNI | E96: QUANT. | H96: P.UNIT. | I96: P.TOTAL
A97: COTAÇÃO | C97: FABRICAÇÃO E MONTAGEM DE ESTRUTURA METÁLICA PARA COBERTURA DE UNIDADE COM ÁREA TOTAL DE 137,9 M² | D97: cj | E97: 1 | H97: 39043.9 | I97: =E97*H97 -> 39043.9
A98: SUB-TOTAL | I98: =SUM(I97:I97) -> 39043.9
A99: PRODUÇÃO DA EQUIPE | D99: 1 | E99: CUSTO | I99: =SUM(I98) -> 39043.9
A100: TOTAL - R$ | I100: =I99/D99 -> 39043.9
A101: BDI % | I101: 1
A102: TOTAL DO SERVIÇO - R$ | I102: =I100*I101 -> 39043.9
A104: COMPOSIÇÃO DE PREÇO UNITÁRIO | I104: CPU004
A105: DESCRIÇÃO DO SERVIÇO | H105: DATA BASE: | I105: 2025-03-01
A106: MODIFICAÇÕES NO CONTAINER COM CORTE POR ESMERILHADEIRA | H106: UNIDADE: | I106: m
A107: MATERIAL
A108: BASE | B108: CÓDIGO | C108: DISCRIMINAÇÃO | D108: UNI | E108: QUANT. | H108: P.UNIT. | I108: P.TOTAL
A109: SINAPI | B109: 11359 | C109: ESMERILHADEIRA ANGULAR ELETRICA, DIAMETRO DO DISCO 7 '' (180 MM), ROTACAO 8500RPM, POTENCIA 2400 W | D109: un | E109: 0.04 | H109: 792.68 | I109: =E109*H109 -> 31.7072
A110: SINAPI | B110: 44531 | C110: DISCO DE CORTE DIAMANTADO SEGMENTADO DIAMETRO DE 180 MM PARA ESMERILHADEIRA 7 " | D110: un | E110: 0.5 | H110: 94.63 | I110: =E110*H110 -> 47.315
A111: SUB-TOTAL | I111: =SUM(I109:I110) -> 79.0222
A112: MÃO DE OBRA
A113: BASE | B113: CÓDIGO | C113: DISCRIMINAÇÃO | D113: UNI | E113: QUANT. | H113: P.UNIT. | I113: P.TOTAL
A114: SINAPI | B114: 88317 | C114: SOLDADOR COM ENCARGOS COMPLEMENTARES | D114: h | E114: 0.25 | H114: 25.72 | I114: =E114*H114 -> 6.43
A115: SINAPI | B115: 88315 | C115: SERRALHEIRO COM ENCARGOS COMPLEMENTARES | D115: h | E115: 0.25 | H115: 25.02 | I115: =E115*H115 -> 6.255
A116: SUB-TOTAL | I116: =SUM(I114:I115) -> 12.685
A117: PRODUÇÃO DA EQUIPE | D117: 1 | E117: CUSTO | I117: =I116+I111 -> 91.7072
A118: TOTAL - R$ | I118: =I117/D117 -> 91.7072
A119: BDI % | I119: 1
A120: TOTAL DO SERVIÇO - R$ | I120: =I118*I119 -> 91.7072
A122: COMPOSIÇÃO DE PREÇO UNITÁRIO | I122: CPU005
A123: DESCRIÇÃO DO SERVIÇO | H123: DATA BASE: | I123: 2025-03-01
A124: MODIFICAÇÕES NO CONTAINER UNIÃO ATRAVÉS DO PROCESSO DE SOLDAGEM, INCLUSO IÇAMENTO DO CONTAINER | H124: UNIDADE: | I124: m
A125: EQUIPAMENTO
A126: BASE | B126: CÓDIGO | C126: DISCRIMINAÇÃO | D126: UNI | E126: QUANT. | H126: P.UNIT. | I126: P.TOTAL
A127: SINAPI | B127: 92716 | C127: APARELHO PARA CORTE E SOLDA OXI-ACETILENO SOBRE RODAS, INCLUSIVE CILINDROS E MAÇARICOS | D127: chp | E127: 0.1846 | H127: 98.73 | I127: =E127*H127 -> 18.225558
A128: SINAPI | B128: 92715 | C128: APARELHO PARA CORTE E SOLDA OXI-ACETILENO SOBRE RODAS, INCLUSIVE CILINDROS E MAÇARICOS - MATERIAIS NA OPERAÇÃO. | D128: h | E128: 1.56 | H128: 98.49 | I128: =E128*H128 -> 153.6444
A129: SINAPI | B129: 5928 | C129: GUINDAUTO HIDRÁULICO, CAPACIDADE MÁXIMA DE CARGA 6200 KG, MOMENTO MÁXIMO DE CARGA 11,7 TM, ALCANCE MÁXIMO HORIZONTAL 9,70 M, INCLUSIVE CAMINHÃO TOCO PBT 16.000 KG, POTÊNCIA DE 189 CV | D129: chp | E129: 0.2388 | H129: 281.74 | I129: =E129*H129 -> 67.279512
A130: SUB-TOTAL | I130: =SUM(I127:I129) -> 239.14947
A131: SERVIÇOS - COMPOSIÇÕES AUXILIARES
A132: BASE | B132: CÓDIGO | C132: DISCRIMINAÇÃO | D132: UNI | E132: QUANT. | H132: P.UNIT. | I132: P.TOTAL
A133: SINAPI | B133: 98746 | C133: SOLDA DE TOPO EM CHAPA/PERFIL/TUBO DE AÇO CHANFRADO, ESPESSURA=1/4''. | D133: m | E133: 1 | H133: 57.73 | I133: =E133*H133 -> 57.73
A134: SUB-TOTAL | I134: =SUM(I133:I133) -> 57.73
A135: MÃO DE OBRA
A136: BASE | B136: CÓDIGO | C136: DISCRIMINAÇÃO | D136: UNI | E136: QUANT. | H136: P.UNIT. | I136: P.TOTAL
A137: SINAPI | B137: 88317 | C137: SOLDADOR COM ENCARGOS COMPLEMENTARES | D137: h | E137: 1.56 | H137: 25.72 | I137: =E137*H137 -> 40.1232
A138: SUB-TOTAL | I138: =SUM(I137:I137) -> 40.1232
A139: PRODUÇÃO DA EQUIPE | D139: 1 | E139: CUSTO | I139: =I138+I130+I134 -> 337.00267
A140: TOTAL - R$ | I140: =I139/D139 -> 337.00267
A141: BDI % | I141: 1
A142: TOTAL DO SERVIÇO - R$ | I142: =I140*I141 -> 337.00267
A144: COMPOSIÇÃO DE PREÇO UNITÁRIO | I144: CPU006
A145: DESCRIÇÃO DO SERVIÇO | H145: DATA BASE: | I145: 2025-03-01
A146: REVESTIMENTO DE PAREDES EM CHAPAS DE AÇO INOXIDÁVEL AISI 304 - CONSIDERANDO CHAPA DE 1,2mm | H146: UNIDADE: | I146: M²
A147: MATERIAL
A148: BASE | B148: CÓDIGO | C148: DISCRIMINAÇÃO | D148: UNI | E148: QUANT. | H148: P.UNIT. | I148: P.TOTAL
A149: COTAÇÃO | C149: CHAPAS DE AÇO INOXIDÁVEL AISI 304 | D149: KG | E149: 9.6 | H149: 34 | I149: =E149*H149 -> 326.4
A150: SINAPI | B150: 131 | C150: ADESIVO ESTRUTURAL A BASE DE RESINA EPOXI, BICOMPONENTE, PASTOSO (TIXOTROPICO) | D150: KG | E150: 0.6 | H150: 64.4 | I150: =E150*H150 -> 38.64
A151: SUB-TOTAL | I151: =SUM(I149:I150) -> 365.04
A152: TOTAL - R$ | I152: =I151 -> 365.04
A153: BDI % | I153: 1
A154: TOTAL DO SERVIÇO - R$ | I154: =I152*I153 -> 365.04
A156: COMPOSIÇÃO DE PREÇO UNITÁRIO | I156: CPU007
A157: DESCRIÇÃO DO SERVIÇO | H157: DATA BASE: | I157: 2025-03-01
A158: REVESTIMENTO CERÂMICO PARA PISO COM PLACAS TIPO ESMALTADA DE DIMENSÕES 45x45cm COM ARGAMASSA AC III | H158: UNIDADE: | I158: m²
A159: MATERIAL
A160: BASE | B160: CÓDIGO | C160: DISCRIMINAÇÃO | D160: UNI | E160: QUANT. | H160: P.UNIT. | I160: P.TOTAL
A161: Sinapi | B161: 37596 | C161: ARGAMASSA COLANTE TIPO AC III E | D161: KG | E161: 9.1325 | H161: 2.92
A162: Sinapi | B162: 1287 | C162: PISO EM CERAMICA ESMALTADA EXTRA, COR LISA, PEI MAIOR OU IGUAL A 4, FORMATO MENOR OU IGUAL A 5 CM2 | D162: m² | E162: 1.1136 | H162: 38.74 | I162: =E162*H162 -> 43.140864
A163: Sinapi | B163: 34357 | C163: REJUNTE CIMENTÍCIO, QUALQUER COR | D163: KG | E163: 0.188 | H163: 4.87 | I163: =E163*H163 -> 0.91556
A164: SUB-TOTAL | I164: =SUM(I162:I163) -> 44.056424
A165: MÃO DE OBRA
A166: BASE | B166: CÓDIGO | C166: DISCRIMINAÇÃO | D166: UNI | E166: QUANT. | H166: P.UNIT. | I166: P.TOTAL
A167: SINAPI | B167: 88317 | C167: AZULEJISTA OU LADRILHISTA COM ENCARGOS COMPLEMENTARES | D167: h | E167: 0.8064 | H167: 25.72 | I167: =E167*H167 -> 20.740608
A168: SINAPI | B168: 88316 | C168: SERVENTE COM ENCARGOS COMPLEMENTARES | D168: h | E168: 0.2068 | H168: 20.27 | I168: =E168*H168 -> 4.191836
A169: SUB-TOTAL | I169: =SUM(I167:I168) -> 24.932444
A170: PRODUÇÃO DA EQUIPE | D170: 1 | E170: CUSTO | I170: =I169+I164 -> 68.988868
A171: TOTAL - R$ | I171: =I170/D170 -> 68.988868
A172: BDI % | I172: 1
A173: TOTAL DO SERVIÇO - R$ | I173: =I171*I172 -> 68.988868
A175: COMPOSIÇÃO DE PREÇO UNITÁRIO | I175: CPU008
A176: DESCRIÇÃO DO SERVIÇO | H176: DATA BASE: | I176: 2025-03-01
A177: CHAPA XADREZ EM ALUMINIO PARA PISO e:3mm, INCLUSO REBITE PARA FIXAÇÃO - MATERIAL | H177: UNIDADE: | I177: m
A178: MATERIAL
A179: BASE | B179: CÓDIGO | C179: DISCRIMINAÇÃO | D179: UNI | E179: QUANT. | H179: P.UNIT. | I179: P.TOTAL
A180: SINAPI | B180: 1337 | C180: CHAPA DE ACO XADREZ PARA PISOS, E = 1/4" (6,30 MM) 54,53 KG/M2 | D180: kg | E180: 38 | H180: 10.65 | I180: =E180*H180 -> 404.7
A181: SINAPI | B181: 10997 | C181: ELETRODO REVESTIDO AWS - E7018, DIAMETRO IGUAL A 4,00 MM | D181: Kg | E181: 2.88 | H181: 28.48 | I181: =E181*H181 -> 82.0224
A182: SUB-TOTAL | I182: =SUM(I180:I181) -> 486.7224
A183: BDI % | I183: 1
A184: TOTAL DO SERVIÇO - R$ | I184: =I182 -> 486.7224
A186: COMPOSIÇÃO DE PREÇO UNITÁRIO | I186: CPU009
A187: DESCRIÇÃO DO SERVIÇO | H187: DATA BASE: | I187: 2025-03-01
A188: CHAPA XADREZ EM ALUMINIO PARA PISO e:3mm, INCLUSO REBITE PARA FIXAÇÃO - MÃO DE OBRA | H188: UNIDADE: | I188: m
A189: MÃO DE OBRA
A190: BASE | B190: CÓDIGO | C190: DISCRIMINAÇÃO | D190: UNI | E190: QUANT. | H190: P.UNIT. | I190: P.TOTAL
A191: SINAPI | B191: 88315 | C191: SERRALHEIRO COM ENCARGOS | D191: H | E191: 8.99 | H191: 25.02 | I191: =E191*H191 -> 224.9298
A192: SINAPI | B192: 88316 | C192: SERVENTE COM ENCARGOS COMPLEMENTARES | D192: H | E192: 6.42 | H192: 20.27 | I192: =E192*H192 -> 130.1334
A193: SUB-TOTAL | I193: =SUM(I191:I192) -> 355.0632
A194: PRODUÇÃO DA EQUIPE | D194: 1 | E194: CUSTO | I194: =I193+I185 -> 355.0632
A195: TOTAL - R$ | I195: =I194/D194 -> 355.0632
A196: BDI % | I196: 1
A197: TOTAL DO SERVIÇO - R$ | I197: =I195*I196 -> 355.0632
A199: COMPOSIÇÃO DE PREÇO UNITÁRIO | I199: CPU0010
A200: DESCRIÇÃO DO SERVIÇO | H200: DATA BASE: | I200: 2025-03-01
A201: REVESTIMENTO DE PAREDES EM CHAPAS DE AÇO INOXIDÁVEL AISI 304 - CONSIDERANDO CHAPA DE 1,2mm | H201: UNIDADE: | I201: M²
A202: APENAS MÃO DE OBRA
A203: BASE | B203: CÓDIGO | C203: DISCRIMINAÇÃO | D203: UNI | E203: QUANT. | H203: P.UNIT. | I203: P.TOTAL
A204: SINAPI | B204: 88317 | C204: SOLDADOR COM ENCARGOS COMPLEMENTARES | D204: h | E204: 0.8 | H204: 25.72 | I204: =E204*H204 -> 20.576
A205: SINAPI | B205: 88315 | C205: SERRALHEIRO COM ENCARGOS COMPLEMENTARES | D205: h | E205: 0.8 | H205: 25.02 | I205: =E205*H205 -> 20.016
A206: SUB-TOTAL | I206: =SUM(I204:I205) -> 40.592
A207: PRODUÇÃO DA EQUIPE | D207: 1 | E207: CUSTO | I207: =I205+I204 -> 40.592
A208: TOTAL - R$ | I208: =I207/D207 -> 40.592
A209: BDI % | I209: 1
A210: TOTAL DO SERVIÇO - R$ | I210: =I208*I209 -> 40.592
A212: COMPOSIÇÃO DE PREÇO UNITÁRIO | I212: CPU011
A213: DESCRIÇÃO DO SERVIÇO | H213: DATA BASE: | I213: 2025-03-01
A214: GUARDA-CORPO DE AÇO CARBONO, MONTANTES TUBULARES DE 1.1/2" ESPAÇADOS EM 0,75M, ALTURA APROXIMADA DE 0,90M, PREPARADO COM FUNDO E TINTA EPÓXI NA COR AMARELA | H214: UNIDADE: | I214: m
A215: MATERIAL
A216: BASE | B216: CÓDIGO | C216: DISCRIMINAÇÃO | D216: UNI | E216: QUANT. | H216: P.UNIT. | I216: P.TOTAL
A217: SINAPI | B217: 1332 | C217: CHAPA DE ACO GROSSA, ASTM A36, E = 3/8 " (9,53 MM) 74,69 KG/M2 | D217: KG | E217: 0,8960000 | H217: 9.47 | I217: =E217*H217 -> 8.48512
... 67 more rows
